{"text_format":"1","workbook":"xlsx","n_sheets":1,"sheets":["CATÁLOGO DCI"],"not_rendered":{"charts":0,"images":2,"macros":1,"external_links":2,"defined_names":135,"comments":0,"pivot_tables":0},"unopened":[],"bounds":{"document_bytes":16777216,"sheet_cells":100000,"rows_first":2000,"rows_last":500,"rows_between":2000,"halvings":0,"cell_chars":16384,"cell_head_chars":4096},"cells_cut":0,"cells_raw":0,"read":"whole","date_system":"1900"}

{"sheet":"CATÁLOGO DCI","index":0,"n_rows":272,"n_cols":7,"rows_kept":272,"cut":false,"hidden":false,"merged":[[269,0,269,4],[270,0,271,4],[8,6,9,6],[11,0,11,6],[0,2,0,5],[1,2,2,5],[4,1,6,1],[7,2,7,5],[8,1,9,1],[8,2,9,5]]}
[null,"MUNICIPIO DE ZAPOPAN, JALISCO","CONCURSO SIMPLIFICADO SUMARIO No."]
[null,"DIRECCIÓN DE CONSERVACION DE INMUEBLES","DCI-MUN-RM-IM-CI-009-2024"]
[null,"UNIDAD DE PRESUPUESTOS Y CONTRATACION DE OBRA PUBLICA"]
[null,"DESCRIPCIÓN GENERAL DE LOS TRABAJOS:",null,null,"FECHA DE INICIO:"]
[null,"Rehabilitación del Ingreso principal, caseta y sanitarios del bosque Pedagógico del Agua ubicado en Av. Santa Cecilia y Av. Las Palmas, incluye: conexión a andador y obras complementarias, colonia Real del Parque, municipio de Zapopan, Jalisco.",null,null,"FECHA DE TERMINACIÓN:"]
[null,null,null,null,"PLAZO DE EJECUCIÓN:"]
[null,null,null,null,"FECHA DE PRESENTACIÓN:"]
[null,"RAZÓN SOCIAL DEL LICITANTE:","NOMBRE, CARGO Y FIRMA DEL LICITANTE",null,null,null,"DOCUMENTO"]
[null,null,null,null,null,null,"PE1"]
[]
[]
["CATÁLOGO DE CONCEPTOS"]
[]
["CLAVE","DESCRIPCIÓN ","UNIDAD","CANTIDAD","PRECIO UNITARIO","PRECIO UNITARIO ($) CON LETRA","IMPORTE"]
[]
["A","INGRESO 1, LAS PALMAS",null,0,null,null,{"$f":"G17+G21+G43+G55+G65+G70+G72","v":0}]
["A.1","DEMOLICIÓN",null,null,null,null,{"$f":"SUM(G18:G20)","v":0}]
["DOPI-001","EXCAVACIÓN POR MEDIOS MECÁNICOS EN MATERIAL TIPO II, DE 0.00 A -2.00 M DE PROFUNDIDAD, INCLUYE: ACARREO DEL MATERIAL A BANCO DE OBRA PARA SU POSTERIOR RETIRO, MANO DE OBRA, EQUIPO Y HERRAMIENTA. (MEDIDO EN TERRENO NATURAL POR SECCIÓN).","M3",4.4000000000000004]
["DOPI-002","RETIRO DE IMPERMEABILIZANTE DE MANTO PREFABRICADO Y RASPADANDO LA SUPERFICIE DE AZOTEAS DE FORMA MANUAL O MECANICO, CON COA, ESPATULA Y/O ESMERIL, INCLUYE: ACARREOS INTERNOS, MANO DE OBRA, EQUIPO, HERRAMIENTA Y APILE DEL MATERIAL DONDE INDIQUE SUPERVISION.","M2 ",27.47]
["DOPI-003","DEMOLICIÓN  DE LADRILLO DE AZOTEA Y MORTERO CON UN ESPESOR DE HASTA 5 CMS, INCLUYE: ACARREOS INTERNOS, MANO DE OBRA, EQUIPO, HERRAMIENTA Y APILE DEL MATERIAL DONDE INDIQUE SUPERVISIÓN.","M2",27.47]
["A.2","ALBAÑILERÍA",null,0,0,null,{"$f":"SUM(G22:G42)","v":0}]
["DOPI-004","TRAZO Y NIVELACIÓN CON EQUIPO TOPOGRÁFICO DEL TERRENO ESTABLECIENDO EJES Y REFERENCIAS Y BANCOS DE NIVEL, INCLUYE: CRUCETAS, ESTACAS, HILOS, MARCAS Y TRAZOS CON CALHIDRA, MANO DE OBRA, EQUIPO Y HERRAMIENTA.","M2",9.31]
["DOPI-005","RELLENO EN CEPAS O MESETAS DE SUELO-CEMENTO, A BASE DE MATERIAL DE BANCO, EN PROPORCIÓN DE 10:1, COMPACTADO CON COMPACTADOR DE IMPACTO EN CAPAS NO MAYORES DE 20 CM AL 95% DE SU P.V.S.M, PRUEBA AASHTO ESTÁNDAR, INCLUYE: HERRAMIENTA, SUMINISTRO DE AGUA PARA LOGRAR HUMEDAD ÓPTIMA, MEZCLADO, TENDIDO, EQUIPO, PRUEBAS DE COMPACTACIÓN, EQUIPO Y MANO DE OBRA. (MEDIDO EN TERRENO NATURAL POR SECCIÓN SEGÚN PROYECTOS.)","M3",1.66]
["DOPI-006","RELLENO EN CEPAS O MESETAS CON MATERIAL DE BANCO, COMPACTADO AL 90% ± 2 DE SU P.V.S.M., PRUEBA AASHTO ESTANDAR, CBR DEL 5% MÍNIMO, EN CAPAS NO MAYORES DE 20 CM, INCLUYE: INCORPORACIÓN DE AGUA NECESARIA, MANO DE OBRA, EQUIPO Y HERRAMIENTA, MEDIDO EN TERRENO NATURAL POR SECCIÓN SEGÚN PROYECTOS.","M3",0.11]
["DOPI-007","DALA DE DESPLANTE DE  SECCIÓN 15X20 CM. CON CONCRETO F'C=150 KG./CM2  Y 4 VARILLAS DE 3/8\", ESTRIBOS DE ALAMBRON DE 1/4\" @20CM. INCLUYE: CIMBRADO,  DESCIMBRADO, MATERIALES , MANO DE OBRA, HERRAMIENTA Y EQUIPO.","M",2.46]
["DOPI-008","DALA DE CORONA CON UNA SECCIÓN DE 15 X 20 CM DE CONCRETO F´C= 150 KG/CM2 HECHO EN OBRA,  ARMADO CON VARILLAS DEL #3 Y ESTRIBOS DEL #3, A CADA 15 CM, INCLUYE: HERRAMIENTA, CIMBRA COMÚN, COLADO, CURADO, VIBRADO, DESCIMBRA, DESPERDICIOS, ACARREOS, EQUIPO Y MANO DE OBRA.","M",2.46]
["DOPI-009","MURO DE SOGA CON BOCK DE JALCRETO  11X14X28 CM. DE 14 CM. DE ESPESOR ASENTADO CON MORTERO CEMENTO ARENA PROP. 1:4. INCLUYE: SUMINISTRO Y ELABORACION, ACARREOS,  ANDAMIOS, EQUIPO, MATERIALES, HERRAMIENTA Y MANO DE OBRA.","M2",6.14]
["DOPI-010","ANCLAJE DE CASTILLO DE CONCRETO F´C= 250 KG/CM2 CON UNA SECCIÓN DE 14X14X50 CM, ARMADO CON 4 VARILLAS DEL #4, ESTRIBOS DEL #3 @15 CM, INCLUYE: ARMADO, COLADO, CURADO, VIBRADO, CIMBRA COMÚN, DESCIMBRA, TRASLAPES, CRUCES DE VARILLAS CON ELEMENTOS TRANSVERSALES, DESPERDICIOS, ACARREOS, MANO DE OBRA Y HERRAMIENTA.","PZA",3]
["DOPI-011","CASTILLO CON UNA SECCIÓN DE 15 X 15 CM DE CONCRETO F´C= 150 KG/CM2 HECHO EN OBRA, ARMADO CON VARILLAS DEL #4 Y ESTRIBOS DEL #3 A CADA 15 CM, INCLUYE: HERRAMIENTA, CIMBRA COMÚN, COLADO, CURADO, VIBRADO, DESCIMBRA, DESPERDICIOS, ACARREOS, EQUIPO Y MANO DE OBRA.","M",6.14]
["DOPI-012","APLICACION DE ZARPEO EN MURO Y/O BOVEDAS, CON MORTERO CEMENTO-ARENA DE RIO PROPORCION 1:3, CUALQUIER ALTURA Y/O NIVEL, INCLUYE: ACARREOS, DESPERDICIOS, ANDAMIOS, PLOMEADO, NIVELADO, REGLEADO, RECORTES, MATERIALES, MANO DE OBRA, EQUIPO, HERRAMIENTA.","M2",12.29]
["DOPI-013","APLANADO DE 2.50 CM DE ESPESOR EN MURO CON MORTERO CEMENTO-ARENA 1:3, ACABADO PULIDO O APALILLADO, INCLUYE: MATERIALES, ACARREOS, DESPERDICIOS, MANO DE OBRA, ANDAMIOS, PLOMEADO, NIVELADO, REGLEADO, RECORTES, MANO DE OBRA, EQUIPO Y HERRAMIENTA.","M2",12.29]
["DOPI-014","BOQUILLA DE 15 A 20 CM DE ANCHO, CON MORTERO CAL - ARENA PROPORCIÓN 1:3, ACABADO REPELLADO, EN APERTURA DE VANOS DE PUERTAS Y VENTANAS, INCLUYE: HERRAMIENTA, PLOMEADO, NIVELADO, DESPERDICIOS, MATERIALES, EQUIPO Y MANO DE OBRA.","M",4.91]
["DOPI-015","SUMINISTRO Y COLOCACIÓN DE CONCRETO HECHO EN OBRA F'C=200 KG/CM2 RESISTENCIA NORMAL, INCLUYE: MATERIALES, COLADO, VIBRADO, DESCIMBRA, CURADO,  MANO DE OBRA, EQUIPO Y HERRAMIENTA.","M3",1.6]
["DOPI-016","SUMINISTRO Y COLOCACIÓN DE MALLA ELECTROSOLDADA 6X6-10/10 COMO REFUERZO EN LOSAS DE CONCRETO, INCLUYE: HABILITADO, DESPERDICIOS, TRASLAPES, MATERIAL DE FIJACIÓN, ACARREO DEL MATERIAL AL SITIO DE SU COLOCACIÓN, MANO DE OBRA Y HERRAMIENTA.","M2",15.97]
["DOPI-017","CORTE CON DISCO DE DIAMANTE HASTA 1/3 DE ESPESOR DE LA LOSA Y HASTA 3 MM DE ANCHO, INCLUYE: EQUIPO, PREPARACIONES Y MANO DE OBRA.","M",8.9700000000000006]
["DOPI-018","SUMINISTRO Y APLICACIÓN DE PASTA  EN MUROS INTERIORES Y/O EXTERIORES, CON ESTUCO BEXEL, ACABADO APALILLADO, INCLUYE: MATERIALES, HERRAMIENTA, MANO DE OBRA, EQUIPO, ACARREOS, NIVELADO, PLOMEADO, CORTES, DESPERDICIOS, ELEVACIÓN Y  ANDAMIOS.","M2 ",103.38]
["DOPI-019","SUMINISTRO E INSTALACIÓN DE LADRILLO DE AZOTEA CON MEDIDAS  DE 17 X 17 CMS ASENTADO CON MORTERO CEMENTO-ARENA 1:4, INCLUYE:  MATERIALES, ACARREOS, ELEVACIÓN, CORTES, DESPERDICIOS, TRASLAPES, MANO DE OBRA. EQUIPO Y HERRAMIENTA.","M2",27.47]
["DOPI-020","SUMINISTRO E INSTALACIÓN  DE ZAVALETA CON LADRILLO DE AZOTEA 17 X 17 CM,  ASENTADO CON MORTERO CEMENTO-ARENA 1:4, INCLUYE:  MATERIALES, ACARREOS, ELEVACIÓN, CORTES, DESPERDICIOS, TRASLAPES, MANO DE OBRA. EQUIPO Y HERRAMIENTA.","M",23.34]
["DOPI-021","LECHADA SOBRE LADRILLO DE AZOTEA CON SISTEMA A BASE DE POLVO MARMOLINA-CEMENTO BLANCO-SELLADOR EN PROPORCION DE 3:4:5. INCLUYE: PREPARACION DE LA SUPERFICIE, MATERIAL Y MANO DE OBRA.","M2",27.47]
["DOPI-022","SUMINISTRO Y COLOCACIÓN DE REGISTRO SANITARIO FORJADO DE 0.40 M X 0.40 M Y HASTA 1.00 M DE PROFUNDIDAD, MEDIDAS INTERIORES, MUROS CON BLOCK 11 X 14 X 28 CM, COLOCADO A SOGA, JUNTEADO CON MORTERO CEMENTO ARENA 1:3, CONTRAMARCO DE ÁNGULO DE 2\" X 1/4\" DE ESPESOR, TAPA DE CONCRETO POLIMERICO DE 50 CM X 50 CM CON SUPERFICIE ANTIDERRAPANTE, LOGOTIPO DE ZAPOPAN Y JALADERA TIPO PERNO, LOSA DE PISO DE 8 CM DE CONCRETO F´C= 200 KG/CM2 HECHO EN OBRA ARMADO CON MALLA ELECTROSOLDADA Y APLANADO INTERIOR CON MORTERO CEMENTO ARENA 1:4, INCLUYE: HERRAMIENTA, CIMBRA, DESCIMBRA, MATERIALES, EQUIPO Y MANO DE OBRA.","PZA",1]
["DOPI-023","REGISTRO PLUVIAL CON MEDIADAS INTERIORES DE 0.60 X 0.60 Y HASTA 1.00 M. DE PROFUNDIDAD, FABICADO CON MUROS DE TABIQUE ROJO RECOCIDO 7 X 14 X 28 CM A SOGA, ASENTADO Y APLANADO CON MEZCLA CEMENTO ARENA DE RIO EN PROPORCIÓN DE 1:4, CON TAPA DE CONCRETO HECHON EN OBRA DE F'C=150 KG/CM2, SUMINISTRO Y COLOCACIÓN DE MARCO Y CONTRAMARCO DE ANGULO DE 1 1/2\" X 3/16\". INCLUYE: EXCAVACIÓN EN TERRENO COMPACTO, ACARREOS, DESPERDICIOS, HABILITADO, CIMBRADO, ACABADO PULIDO EN INTERIOR, LIMPIEZA, MATERIALES, MANO DE OBRA, EQUIPO Y HERRAMIENTA.","PZA",1]
["DOPI-024","REGISTRO ELECTRICO CON MEDIADAS INTERIORES DE 0.60 X 0.60 Y HASTA 1.00 M. DE PROFUNDIDAD, FABICADO CON MUROS DE TABIQUE ROJO RECOCIDO 7 X 14 X 28 CM A SOGA, ASENTADO Y APLANADO CON MEZCLA CEMENTO ARENA DE RIO EN PROPORCIÓN DE 1:4, CON TAPA DE CONCRETO HECHON EN OBRA DE F'C=150 KG/CM2, SUMINISTRO Y COLOCACIÓN DE MARCO Y CONTRAMARCO DE ANGULO DE 1 1/2\" X 3/16\". INCLUYE: EXCAVACIÓN EN TERRENO COMPACTO, ACARREOS, DESPERDICIOS, HABILITADO, CIMBRADO, ACABADO PULIDO EN INTERIOR, LIMPIEZA, MATERIALES, MANO DE OBRA, EQUIPO Y HERRAMIENTA.","PZA",1]
["A.3","INSTALACIÓN ELÉCTRICA",null,0,0,null,{"$f":"SUM(G44:G54)","v":0}]
["DOPI-025","RANURA PARA ALOJAR TUBERIAS DE POLIDUCTO DE HASTA DE 2\" DE DIAMETRO DE 10 X 10 CM, EN MUROS Y/O BOVEDA, INCLUYE: CORTE CON DISCO, DEMOLICIÓN DE ENJARRE Y MURO DE FORMA MANUAL Y/O MECANICA, ACARREO, CORTES, RESANE CON MORTERO CEMENTO-ARENA PROPORCION 1:3, MATERIALES, MANO DE OBRA, EQUIPO Y HERRAMIENTA.","M",98.28]
["DOPI-026","SUMINISTRO Y COLOCACIÓN DE CENTRO DE CARGA QO4 NEMA 1 TIPO SOBREPONER, INCLUYE: MATERIALES, MANO DE OBRA Y HERRAMIENTA.","PZA",2]
["DOPI-027","BASE DE MEDICION MONOFASICO MCA. IUSA DE 100 AMP INCLUYE: SUMINISTRO Y COLOCACION, MATERIALES MENORES PARA SU INSTALACION, MANO DE OBRA Y TODO LO NECESARIO PARASU CORRECTA EJECUCION.","PZA",2]
["DOPI-028","SUMINISTRO E INSTALACIÓN DE  CABLE DE COBRE THW CAL. 8, INCLUYE: MATERIALES, MANO DE OBRA, EQUIPO Y HERRAMIENTA.","M",92.14]
["DOPI-029","SUMINISTRO Y COLOCACIÓN DE INTERRUPTOR TERMOMAGNETICO DE 1X15-30 AMP. INCLUYE: MATERIAL, MANO DE OBRA Y HERRAMIENTA.","PZA",3]
["DOPI-030","SUMINISTRO Y COLOCACION DE TUBERIA POLIDUCTO DE DIAMETRO DE 1\", MARCA POLIFLEX O SIMILAR, INCLUYE: CORTES, CONEXIÓN, PRUEBAS, MATERIALES, MANO DE OBRA, EQUIPO Y HERRAMIENTA.","M",30.71]
["DOPI-031","SUMINISTRO E INSTALACIÓN DE CABLE MONOPOLAR DE COBRE AISLAMIENTO THHW, 600V, CAL. 12 AWG MARCA CONDUMEX O SIMILAR, INCLUYE: HERRAMIENTA, MATERIALES, CONEXIÓN,  PRUEBAS, EQUIPO Y MANO DE OBRA.","M",460.69]
["DOPI-032","SALIDA ELÉCTRICA PARA CONTACTO DUPLEX POLARIZADO Y/O APAGADOR SENCILLO, OCULTA, CON TUBERÍA Y CONEXIONES CONDUIT DE PVC PESADO DE 13 Y 19 MM DE DIÁMETRO, CABLE VINANEL THW-LS 600 V. A 75° C, 90° C, MARCA CONDUCTORES MONTERREY O SIMILAR (VIAKON-PROTOCOLIZADO), CABLE VINANEL 21 THW-LS 600 V. A 75° C, 90° C, MARCA CONDUMEX (CONDUMEX PROTOCOLIZADO), CALIBRE 10 Y 12, CAJAS DE REGISTRO CUADRADAS, CHALUPAS Y TAPAS DE PVC REFORZADO, CONTACTO Y APAGADOR QUINZIÑO O SIMILAR, TAPA DE ALUMINIO, INCLUYE: HERRAMIENTA, TRAZO, RANURAS, CONEXIÓN A TIERRA, ACCESORIOS, MATERIALES MENORES Y DE CONSUMO, PRUEBAS, DESPERDICIOS Y ACARREO DEL MATERIAL AL SITIO DE SU COLOCACIÓN, A CUALQUIER NIVEL, EQUIPO Y MANO DE OBRA.","SAL",2]
["DOPI-033","SUMINISTRO Y COLOCACIÓN DE TUBO CONDUIT PARED GRUESA GALVANIZADO DE 13 MM, INCLUYE: COPLE, MATERIAL, MANO DE OBRA Y HERRAMIENTA.","M",36.86]
["DOPI-034","SUMINISTRO Y COLOCACION DE CAJA DE REGISTRO CUADRADA 4\"X4\", PARA ALIMENTACION DE LUMINARIAS, APAGADORES Y CONTACTOS.  INCLUYE:  FIJACIONES SOBRE MURO, LOSA O ESTRUCTURA DE ANDAMIOS, A CUALQUIER ALTURA, CUALQUIER DISTANCIA, ACARREOS, CORTES, FIJACIONES, DESPERDICIOS, MATERIALES, MANO DE OBRA, EQUIPO Y HERRAMIENTA.","PZA",2]
["DOPI-035","SUMINISTRO E INSTALACION DE REFLECTOR LED DE LUZ RGB, PROTECCION IP65, MODELO 20LQLEDMVTCRGBCNW MARCA TECNOLED O SIMILAR,  INCLUYE: FLETES, ACARREO, ELEVACION, FIJACION, CONEXIONES, PIJAS, PRUEBAS, CONTROLADOR PARA CAMBIO DE ILUMINACION, PROGRAMACION Y PUESTA EN MARCHA, MATERIALES, MANO DE OBRA ESPECIALIZADA, EQUIPO Y HERRAMIENTA MENOR.","PZA",2]
["A.4","INSTALACIÓN HIDRO - SANITARIA.",null,0,0,null,{"$f":"SUM(G56:G64)","v":0}]
["DOPI-036","SALIDA SANITARIA A MUEBLE, CONSISTENTE EN TUBERÍA Y CONEXIONES DE PVC DE 2\" Y 4\" DE DIÁMETRO, HASTA 3 MTS DE LONGITUD, INCLUYE: DESPERDICIO DE TUBERÍA, LÍNEA DE VENTILACIÓN (DESFOGUE),  COPLES, CODOS, TEES, YEES, REDUCCIONES, REGISTRO SANITARIO, MATERIALES MENORES, FLETES Y ACARREO DE LOS MATERIALES AL SITIO DE SU INSTALACIÓN Y PRUEBAS.","SAL",2]
["DOPI-037","SALIDA HIDRÁULICA DE AGUA FRÍA Y/O CALIENTE, PARA ALIMENTACIÓN A MUEBLE SANITARIO, CONSISTENTE EN TUBERÍA Y CONEXIONES DE CPVC DE 1/2\" A 2\" DE DIÁMETRO CON UN DESARROLLO DE HASTA 5.00 M,  INCLUYE: TRAZO, RANURAS, CÁMARAS CONTRA GOLPE DE ARIETE, CONEXIONES, (COPLES, CODOS, TAPONES, TEES, YEES, REDUCCIONES, ETC),  VÁLVULAS, TUERCAS UNIÓN EN CUADROS DE VÁLVULAS, MATERIALES MENORES Y DE CONSUMO, PEGAMENTOS, ELEMENTOS DE FIJACIÓN, DESPERDICIOS,  HERRAMIENTAS, LIMPIEZA, MANO DE OBRA, PRUEBAS HIDROSTÁTICAS, FLETES Y ACARREO DE LOS MATERIALES AL SITIO DE SU INSTALACIÓN.","SAL",2]
["DOPI-038","SUMINISTRO Y COLOCACIÓN DE TUBO DE PVC DE 4\" DE DIÁMETRO, INCLUYE: ACARREOS, MATERIALES, MANO DE OBRA, EQUIPO Y HERRAMIENTA.","M",36.86]
["DOPI-039","SUMINISTRO Y COLOCACION DE TUBERÍA DE CPVC DE 3/4\" DE DIAMETRO , INCLUYE: CODOS, COPLES, PEGAMENTO, MATERIALES, MANO DE OBRA, EQUIPO Y HERRAMIENTA.","M",36.86]
["DOPI-040","SUMINISTRO Y COLOCACIÓN DE ESPEJO FLOTADO RECTANGULAR BISELADO DE 6 MM INCLINACIÓN DE 10°, INCLUYE: MATERIALES MENORES Y DE CONSUMO,  ELEMENTOS DE FIJACION, MARCO DE ALUMINIO DE 2\", VINILO, PIJAS, HERRAMIENTAS, LIMPIEZA Y MANO DE OBRA ESPECIALIZADA.","M2",1.18]
["DOPI-041","SUMINISTRO Y COLOCACIÓN DE DISPENSADOR DE JABÓN MARCA JOFEL, MOD.  MINI JOFEL AC-84000-AU COLOR GRIS HUMO MEDIDAS 13.5 X 11.5 X 8.2 CM O SIMILAR, INCLUYE: MATERIALES, MANO DE OBRA, HERRAJES DE FIJACIÓN Y HERRAMIENTA.","PZA",1]
["DOPI-042","SUMINISTRO Y COLOCACIÓN DE DESPACHADOR DE PAPEL HIGIÉNICO MARCA JOFEL, MOD. PH-52002 COLOR TRANSPARENTE EN BASE GRIS O SIMILAR, INCLUYE: MATERIALES, MANO DE OBRA, HERRAJES DE FIJACIÓN Y HERRAMIENTA.","PZA",1]
["DOPI-043","SUMINISTRO E INSTALACIÓN DE BOMBA MONOFSICA DE AGUA PERIFÉRICA DE 0.5 HP, 60L/MIN, CONEXIONES DE 1\" A 115 V. MCA. PEDROLLO.  A CUALQUIER NIVEL Y/O ALTURA. INCLUYE: FLETE, ACARREOS, ACCESORIOS, UNIONES Y PIEZAS ESPECIALES.","PZA ",1]
["DOPI-044","SUMINISTRO Y COLOCACION DE TINACO TRICAPA DE 750 LTS ROTOPLAS CON ACCESORIOS DE VALVULA DE LLENADO, MULTICONECTOR CON VALVULA ESFERA Y TUERCA UNION, FLOTADOR NUMERO 5, JARRO DE AIRE Y FILTRO ESTANDAR, INCLUYE: ACCESORIOS,  CONEXIONES, CODOS, NIPLES, TEE, UNIONES, ACARREO, ELEVACIONES, CORTES, FIJACION, LIMPIEZA GRUESA, MATERIALES, MANO DE OBRA, EQUIPO Y HERRAMIENTA.","PZA ",1]
["A.5","ACABADOS",null,0,0,null,{"$f":"SUM(G66:G69)","v":0}]
["DOPI-045","SUMINISTRO Y APLICACIÓN DE PINTURA VINILICA COLOR  DOS MANOS COMO MINIMO, EN BOVEDAS Y FACHADAS EXTERIORES E INTERIORES,  CUALQUIER COLOR, A 3.50 M DE ALTURA, INCLUYE; PREPARACION DEL ÁREA, SELLADO, ANDAMIOS, MATERIAL Y MANO DE OBRA.","M2",103.37]
["DOPI-046","IMPERMEABILIZACION SOBRE LADRILLO DE AZOTEA, MCA. ACRITON PLUS, EN 2 CAPAS A RAZON DE 1 CAPA DE ACRITON SIN DILUIR CON RENDIMIENTO DE 0.5 LT/M2 DEJANDO SECAR 24 HR. Y UNA 2a. CAPA EN SENTIDO CRUZADO A LA PRIMERA CON RENDIMIENTO DE 0.5 LT/M2.  INCLUYE: RASPADO Y PREPARACION DE LA SUPERFICIE, CON GARANTIA DE 6 AÑOS.","M2 ",27.47]
["DOPI-047","PINTURA ESMALTE CARA ABIERTA EN HERRERIA DE PUERTAS Y VENTANAS DE FACHADA, INCLUYE: RASPADO Y PREPARACION EL AREA, ANDAMIOS, MATERIALES, MANO DE OBRA , EQUIPO HERRAMIENTA Y LIMPIEZA.","M2",169.68]
["DOPI-048","SUMINISTRO Y APLICACIÓN DE PINTURA DE ESMALTE CARA CERRADA COLOR BLANCO Y/O  GRIS EN PORTONES DE LÁMINA EXISTENTES INCLUYE; PREPARACION DEL ÁREA, ANDAMIOS, MATERIAL, MANO DE OBRA, EQUIPO Y HERRAMIENTA.","M2",169.68]
["A.6","HERRERÍA",null,0,0,null,{"$f":"SUM(G71)","v":0}]
["DOPI-049","SUMINISTRO , HABILITADO Y COLOCACION DE HERRERIA ESTRUCTURAL PARA ESCALERAS, PUERTAS, VENTANAS, CANCELES Y PASAMANOS, INCLUYE: FLETES, ACARREOS, CORTES, DESPERDICIOS, SOLDADURAS, PINTURA ANTICORROSIVA ( PRIMER ), MATERIAL Y MANO DE OBRA.","KG",49.14]
["A.7","LIMPIEZA",null,0,0,null,{"$f":"SUM(G73:G76)","v":0}]
["DOPI-050","LIMPIEZA GRUESA DE OBRA, INCLUYE: ACARREO A BANCO DE OBRA, MANO DE OBRA, EQUIPO Y HERRAMIENTA.","M2",43.32]
["DOPI-051","LIMPIEZA FINA EN FACHALETA.  DE 0.00 A 3 M DE ALTURA, INCLUYE: MANO DE OBRA, HERRAMIENTA Y EQUIPO.","M2",104.42]
["DOPI-052","CARGA Y ACARREO EN CARRETILLA A 40.00 MT. DE DISTANCIA DE MATERIAL PRODUCTO DE LA EXCAVACION Y/O DEMOLICION.  INCLUYE: HERRAMIENTA MENOR Y MANO DE OBRA. VOLUMEN MEDIDO EN SECCIONES.","M3",0.61]
["DOPI-053","CARGA MECÁNICA Y ACARREO EN CAMIÓN A TIRADERO OFICIAL FUERA DE LA OBRA , DE MATERIAL PRODUCTO DE EXCAVACIÓN, DEMOLICIÓN Y/O ESCOMBROS, INCLUYE: REGALÍAS AL BANCO DE TIRO, MANO DE OBRA, EQUIPO Y HERRAMIENTA.","M3",0.61]
["B","INGRESO 2, ACUEDUCTO",null,0,0,null,{"$f":"G78+G85+G101+G104+G108+G110","v":0}]
["B.1","DEMOLICIÓN",null,0,0,null,{"$f":"SUM(G79:G84)","v":0}]
["DOPI-054","DEMOLICIÓN DE CONCRETO SIMPLE EN BANQUETAS, POR MEDIOS MECÁNICOS, INCLUYE: ACARREO DEL MATERIAL A BANCO DE OBRA PARA SU POSTERIOR RETIRO Y LIMPIEZA DEL ÁREA DE LOS TRABAJOS, MANO DE OBRA, EQUIPO Y HERRAMIENTA.","M3",3.32]
["DOPI-055","DEMOLICIÓN MECANICA DE ELEMENTOS DE CONCRETO ARMADO EN CIMENTACIONES, INCLUYE:MANO DE OBRA, EQUIPO, HERRAMIENTA, ACARREO INTERNO EN CARRETILLA HASTA 20 METROS Y APLILE PARA POSTERIOR RETIRO.","M3",17.690000000000001]
["DOPI-056","DESMONTAJE DE ACCESORIOS SANITARIOS (DOSIFICADOR DE JABON, DOSIFICADOR DE PAPEL, DOSIFICADOR DE JABON, SECADORES, ETC.) SIN RECUPERACIÓN, INCLUYE:  HERRAMIENTA, MANO DE OBRA, EQUIPO, ACARREO INTERNO Y APILE PARA RETIRO POSTERIOR.","PZA",14]
["DOPI-057","EXCAVACIÓN POR MEDIOS MECÁNICOS EN MATERIAL TIPO II, DE 0.00 A -2.00 M DE PROFUNDIDAD, INCLUYE: ACARREO DEL MATERIAL A BANCO DE OBRA PARA SU POSTERIOR RETIRO, MANO DE OBRA, EQUIPO Y HERRAMIENTA. (MEDIDO EN TERRENO NATURAL POR SECCIÓN).","M3",66.34]
["DOPI-058","RETIRO DE IMPERMEABILIZANTE DE MANTO PREFABRICADO Y RASPADANDO LA SUPERFICIE DE AZOTEAS DE FORMA MANUAL O MECANICO, CON COA, ESPATULA Y/O ESMERIL, INCLUYE: ACARREOS INTERNOS, MANO DE OBRA, EQUIPO, HERRAMIENTA Y APILE DEL MATERIAL DONDE INDIQUE SUPERVISION.","M2 ",137.59]
["DOPI-059","DEMOLICIÓN  DE LADRILLO DE AZOTEA Y MORTERO CON UN ESPESOR DE HASTA 5 CMS, INCLUYE: ACARREOS INTERNOS, MANO DE OBRA, EQUIPO, HERRAMIENTA Y APILE DEL MATERIAL DONDE INDIQUE SUPERVISIÓN.","M2",137.59]
["B.2","ALBAÑILERÍA",null,0,0,null,{"$f":"SUM(G86:G100)","v":0}]
["DOPI-060","TRAZO Y NIVELACIÓN CON EQUIPO TOPOGRÁFICO DEL TERRENO ESTABLECIENDO EJES Y REFERENCIAS Y BANCOS DE NIVEL, INCLUYE: CRUCETAS, ESTACAS, HILOS, MARCAS Y TRAZOS CON CALHIDRA, MANO DE OBRA, EQUIPO Y HERRAMIENTA.","M2",22.11]
["DOPI-061","RELLENO EN CEPAS O MESETAS DE SUELO-CEMENTO, A BASE DE MATERIAL DE BANCO, EN PROPORCIÓN DE 10:1, COMPACTADO CON COMPACTADOR DE IMPACTO EN CAPAS NO MAYORES DE 20 CM AL 95% DE SU P.V.S.M, PRUEBA AASHTO ESTÁNDAR, INCLUYE: HERRAMIENTA, SUMINISTRO DE AGUA PARA LOGRAR HUMEDAD ÓPTIMA, MEZCLADO, TENDIDO, EQUIPO, PRUEBAS DE COMPACTACIÓN, EQUIPO Y MANO DE OBRA. (MEDIDO EN TERRENO NATURAL POR SECCIÓN SEGÚN PROYECTOS.)","M3",2.21]
["DOPI-062","PLANTILLA DE 5 CM DE ESPESOR DE CONCRETO HECHO EN OBRA DE F´C=100 KG/CM2, INCLUYE: PREPARACIÓN DE LA SUPERFICIE, NIVELACIÓN, MAESTREADO, COLADO, MANO DE OBRA, EQUIPO Y HERRAMIENTA.","M2",22.11]
["DOPI-063","SUMINISTRO, HABILITADO Y ARMADO DE ACERO DE REFUERZO FY =4200 KG/CM2 DE DIAMETRO  3/8\" (#3) FORMANDO UNA RETÍCULA @ 90 CMS, DISPUESTO EN FORMA DE GAMMA METIDA 10 CM AL FIRME Y CON GANCHITO A CADA 1.00M EN CUADRÍCULA PARA ANCLAR LA NUEVA LOSA, INCLUYE: SUMINISTRO DE MATERIALES, HABILITADO, ARMADO, COLOCACIÓN, ALAMBRE RECOCIDO, GANCHOS, SILLETAS, TRASLAPES, CORTES, DESPERDICIOS, ACARREOS A CUALQUIER DISTANCIA Y CUALQUIER ALTURA, ELEVACIONES, TRABAJOS REALIZADOS A CUALQUIER PROFUNDIDAD, MANO DE OBRA, HERRAMIENTA, MAQUINARIA, EQUIPO Y TODO LO NECESARIO PARA SU CORRECTA EJECUCIÓN.","KG",1114.25]
["DOPI-064","SUMINISTRO Y COLOCACIÓN DE CONCRETO HECHO EN OBRA F'C=250 KG/CM2 RESISTENCIA NORMAL, INCLUYE: MATERIALES, COLADO, VIBRADO, DESCIMBRA, CURADO,  MANO DE OBRA, EQUIPO Y HERRAMIENTA.","M3 ",24.57]
["DOPI-065","CIMBRA ACABADO COMÚN EN DALAS Y CASTILLOS A BASE DE MADERA DE PINO DE 2A, PARA CAJA DE VÁLVULAS Y POZOS DE VISITA, INCLUYE: MATERIALES, ACARREOS, CORTES, HABILITADO, CIMBRADO, DESCIMBRA, MANO DE OBRA, EQUIPO Y HERRAMIENTA.","M2",66.34]
["DOPI-066","DALA DE DESPLANTE DE  SECCIÓN 15X15 CM. CON CONCRETO F'C=150 KG./CM2  Y 4 VARILLAS DE 3/8\", ESTRIBOS DE ALAMBRON DE 1/4\" @20CM. INCLUYE: CIMBRADO,  DESCIMBRADO, MATERIALES , MANO DE OBRA, HERRAMIENTA Y EQUIPO.","M",22.11]
["DOPI-067","DALA DE CORONA CON UNA SECCIÓN DE 20 X 20 CM DE CONCRETO F´C= 150 KG/CM2 HECHO EN OBRA,  ARMADO CON VARILLAS DEL #3 Y ESTRIBOS DEL #2, A CADA 20 CM, INCLUYE: HERRAMIENTA, CIMBRA COMÚN, COLADO, CURADO, VIBRADO, DESCIMBRA, DESPERDICIOS, ACARREOS, EQUIPO Y MANO DE OBRA.","M",22.11]
["DOPI-068","MURO DE SOGA CON BOCK DE JALCRETO  11X14X28 CM. DE 14 CM. DE ESPESOR ASENTADO CON MORTERO CEMENTO ARENA PROP. 1:4. INCLUYE: SUMINISTRO Y ELABORACION, ACARREOS,  ANDAMIOS, EQUIPO, MATERIALES, HERRAMIENTA Y MANO DE OBRA.","M2",66.34]
["DOPI-069","ANCLAJE DE CASTILLO DE CONCRETO F´C= 250 KG/CM2 CON UNA SECCIÓN DE 14X14X50 CM, ARMADO CON 4 VARILLAS DEL #4, ESTRIBOS DEL #3 @15 CM, INCLUYE: ARMADO, COLADO, CURADO, VIBRADO, CIMBRA COMÚN, DESCIMBRA, TRASLAPES, CRUCES DE VARILLAS CON ELEMENTOS TRANSVERSALES, DESPERDICIOS, ACARREOS, MANO DE OBRA Y HERRAMIENTA.","PZA",7]
["DOPI-070","CASTILLO CON UNA SECCIÓN DE 15 X 15 CM DE CONCRETO F´C= 150 KG/CM2 HECHO EN OBRA, ARMADO CON VARILLAS DEL #4 Y ESTRIBOS DEL #3 A CADA 15 CM, INCLUYE: HERRAMIENTA, CIMBRA COMÚN, COLADO, CURADO, VIBRADO, DESCIMBRA, DESPERDICIOS, ACARREOS, EQUIPO Y MANO DE OBRA.","M",22.11]
["DOPI-071","APLICACION DE ZARPEO EN MURO Y/O BOVEDAS, CON MORTERO CEMENTO-ARENA DE RIO PROPORCION 1:3, CUALQUIER ALTURA Y/O NIVEL, INCLUYE: ACARREOS, DESPERDICIOS, ANDAMIOS, PLOMEADO, NIVELADO, REGLEADO, RECORTES, MATERIALES, MANO DE OBRA, EQUIPO, HERRAMIENTA.","M2",66.34]
["DOPI-072","SUMINISTRO E INSTALACIÓN DE LADRILLO DE AZOTEA CON MEDIDAS  DE 17 X 17 CMS ASENTADO CON MORTERO CEMENTO-ARENA 1:4, INCLUYE:  MATERIALES, ACARREOS, ELEVACIÓN, CORTES, DESPERDICIOS, TRASLAPES, MANO DE OBRA. EQUIPO Y HERRAMIENTA.","M2",135.13999999999999]
["DOPI-073","SUMINISTRO E INSTALACIÓN  DE ZAVALETA CON LADRILLO DE AZOTEA 17 X 17 CM,  ASENTADO CON MORTERO CEMENTO-ARENA 1:4, INCLUYE:  MATERIALES, ACARREOS, ELEVACIÓN, CORTES, DESPERDICIOS, TRASLAPES, MANO DE OBRA. EQUIPO Y HERRAMIENTA.","M",83.05]
["DOPI-074","LECHADA SOBRE LADRILLO DE AZOTEA CON SISTEMA A BASE DE POLVO MARMOLINA-CEMENTO BLANCO-SELLADOR EN PROPORCION DE 3:4:5. INCLUYE: PREPARACION DE LA SUPERFICIE, MATERIAL Y MANO DE OBRA.","M2",135.13999999999999]
["B.3","INSTALACIÓN HIDRO - SANITARIA.",null,0,0,null,{"$f":"SUM(G102:G103)","v":0}]
["DOPI-075","SUMINISTRO  Y  COLOCACIÓN DE LLAVE MEZCLADORA MONOMANDO, ECONOMIZADORA, MODELO TV-121, MARCA HELVEX O SIMILAR, INCLUYE: PAQUETE DE INSTALACION DE LAVABO COFLEX, ACCESORIOS, CONEXIONES, MATERIALES, MANO DE OBRA, EQUIPO Y HERRAMIENTA.","PZA",14]
["DOPI-076","SUMINISTRO E INSTALACIÓN DE TANQUE  HIDRONEOMÁTICO DE  480 LTS MARCA EVANS MODELO EQTH-480VE, INCLUYE: BOMBA MULTIETAPAS MONOFASICA CON MOTOR DE 2 HP SUCCION DE 1.25\" Y DESCARGA DE 1\" MARCA EVANS MODELO XH2ME200, SWITCH PRESION 1.5HP 30-50PSI, MANOMETRO GLICERINA 100PSI INF, VALVULA PIE/CHECK 2 NPT, MATERIALES, MANO DE OBRA ESPCIALIZADA Y HERRAMIENTA.","PZA ",1]
["B.4","ACABADOS",null,0,0,null,{"$f":"SUM(G105:G107)","v":0}]
["DOPI-077","SUMINISTRO Y APLICACIÓN DE PINTURA VINILICA COLOR  DOS MANOS COMO MINIMO, EN BOVEDAS Y FACHADAS EXTERIORES E INTERIORES,  CUALQUIER COLOR, A 3.50 M DE ALTURA, INCLUYE; PREPARACION DEL ÁREA, SELLADO, ANDAMIOS, MATERIAL Y MANO DE OBRA.","M2",452.09]
["DOPI-078","IMPERMEABILIZACION SOBRE LADRILLO DE AZOTEA, MCA. ACRITON PLUS, EN 2 CAPAS A RAZON DE 1 CAPA DE ACRITON SIN DILUIR CON RENDIMIENTO DE 0.5 LT/M2 DEJANDO SECAR 24 HR. Y UNA 2a. CAPA EN SENTIDO CRUZADO A LA PRIMERA CON RENDIMIENTO DE 0.5 LT/M2.  INCLUYE: RASPADO Y PREPARACION DE LA SUPERFICIE, CON GARANTIA DE 6 AÑOS.","M2 ",135.13999999999999]
["DOPI-079","PINTURA ESMALTE CARA ABIERTA EN HERRERIA DE PUERTAS Y VENTANAS DE FACHADA, INCLUYE: RASPADO Y PREPARACION EL AREA, ANDAMIOS, MATERIALES, MANO DE OBRA , EQUIPO HERRAMIENTA Y LIMPIEZA.","M2",52.83]
["B.5","HERRERÍA",null,0,0,null,{"$f":"SUM(G109)","v":0}]
["DOPI-080","SUMINISTRO , HABILITADO Y COLOCACION DE HERRERIA ESTRUCTURAL PARA ESCALERAS, PUERTAS, VENTANAS, CANCELES Y PASAMANOS, INCLUYE: FLETES, ACARREOS, CORTES, DESPERDICIOS, SOLDADURAS, PINTURA ANTICORROSIVA ( PRIMER ), MATERIAL Y MANO DE OBRA.","KG",79.849999999999994]
["B.6","LIMPIEZA",null,0,0,null,{"$f":"SUM(G111:G113)","v":0}]
["DOPI-081","LIMPIEZA GRUESA DE OBRA, INCLUYE: ACARREO A BANCO DE OBRA, MANO DE OBRA, EQUIPO Y HERRAMIENTA.","M2",157.25]
["DOPI-082","CARGA Y ACARREO EN CARRETILLA A 40.00 MT. DE DISTANCIA DE MATERIAL PRODUCTO DE LA EXCAVACION Y/O DEMOLICION.  INCLUYE: HERRAMIENTA MENOR Y MANO DE OBRA. VOLUMEN MEDIDO EN SECCIONES.","M3",88.45]
["DOPI-083","CARGA MECÁNICA Y ACARREO EN CAMIÓN A TIRADERO OFICIAL FUERA DE LA OBRA , DE MATERIAL PRODUCTO DE EXCAVACIÓN, DEMOLICIÓN Y/O ESCOMBROS, INCLUYE: REGALÍAS AL BANCO DE TIRO, MANO DE OBRA, EQUIPO Y HERRAMIENTA.","M3",88.45]
["C","INGRESO 3, SANTA CECILIA",null,0,0,null,{"$f":"G115+G126+G139+G184+G204+G225","v":0}]
["C.1","BIODIGESTOR",null,0,0,null,{"$f":"SUM(G116:G125)","v":0}]
["DOPI-084","TRAZO Y NIVELACIÓN CON EQUIPO TOPOGRÁFICO DEL TERRENO ESTABLECIENDO EJES Y REFERENCIAS Y BANCOS DE NIVEL, INCLUYE: CRUCETAS, ESTACAS, HILOS, MARCAS Y TRAZOS CON CALHIDRA, MANO DE OBRA, EQUIPO Y HERRAMIENTA.","M2",675.68]
["DOPI-085","EXCAVACIÓN POR MEDIOS MANUALES DE 0.00 A -2.00 M, AUTORIZADA EN SITIO POR SUPERVISIÓN, EN MATERIAL TIPO II,  INCLUYE: RETIRO DEL MATERIAL A BANCO DE OBRA INDICADO POR SUPERVISIÓN, ABUNDAMIENTO, MANO DE OBRA, EQUIPO Y HERRAMIENTA.","M3",67.569999999999993]
["DOPI-086","PLANTILLA DE 10 CM DE ESPESOR DE CONCRETO HECHO EN OBRA DE F´C=150 KG/CM2, INCLUYE: PREPARACIÓN DE LA SUPERFICIE, NIVELACIÓN, MUESTREADO, COLADO, MANO DE OBRA, EQUIPO Y HERRAMIENTA.","M3",12.29]
["DOPI-087","SUMINISTRO E INSTALACION DE BIODIGESTOR AUTOLIMPIABLE RP3000L ROTOPLAS O SIMILAR, LARGO 210CM X ANCHO 200CM, PESO 132KG MATERIAL POLIETILENO, INCLUYE ACARREOS, EQUIPO, HERRAMIENTA,PZAS ESPECIALES Y MANO DE OBRA PARA SU CORRECTA EJECUCION E INSTALACION.","PZA",1]
["DOPI-088","RELLENO CON MATERIAL PRODUCTO DE LA EXCAVACIÓN COMPACTADO CON PIZÓN EN CAPAS NO MAYORES DE 20 CMS. INCLUYE: ACARREOS, EQUIPO, HERRAMIENTA Y MANO DE OBRA","M3",56.76]
["DOPI-089","MURO TIPO TEZON DE BLOCK 11 X 14 X 28 CM ASENTADO CON MORTERO CEMENTO-ARENA 1:3, ACABADO COMÚN, INCLUYE: MATERIALES, MANO DE OBRA, EQUIPO Y HERRAMIENTA.","M2",6.76]
["DOPI-090","RELLENO EN CEPAS O MESETAS CON MATERIAL DE BANCO, COMPACTADO AL 90% ± 2 DE SU P.V.S.M., PRUEBA AASHTO ESTANDAR, CBR DEL 5% MÍNIMO, EN CAPAS NO MAYORES DE 20 CM, INCLUYE: INCORPORACIÓN DE AGUA NECESARIA, MANO DE OBRA, EQUIPO Y HERRAMIENTA, MEDIDO EN TERRENO NATURAL POR SECCIÓN SEGÚN PROYECTOS.","M3",4.05]
["DOPI-091","APLANADO DE 2.50 CM DE ESPESOR EN MURO CON MORTERO CEMENTO-ARENA 1:3, ACABADO PULIDO O APALILLADO, INCLUYE: MATERIALES, ACARREOS, DESPERDICIOS, MANO DE OBRA, ANDAMIOS, PLOMEADO, NIVELADO, REGLEADO, RECORTES, MANO DE OBRA, EQUIPO Y HERRAMIENTA.","M2",6.76]
["DOPI-092","SUMINISTRO Y ELABORACION DE PISO DE CONCRETO DE 8 CM DE ESPESOR CON CONCRETO F´C=150 KG/CM² T.M.A. 3/4\", HECHO EN OBRA, CON REFUERZO DE FIBRA INTEGRAL A RAZON DE 600 GRAMOS POR CADA M3 DE CONCRETO, ACABADO ESCOBILLADO, CON DOBLADOR EN PERIMETRO Y DIVISIONES A CADA 1.00 MTS, INCLUYE: , CIMBRA, COLADO, VIBRADO, CURADO CON CURACRETO BLANCO, HERRAMIENTA, EQUIPO, MANO DE OBRA.","M2",8.4499999999999993]
["DOPI-093","SUMINISTRO Y COLOCACIÓN DE TAPA PARA REGISTRO DE CISTERNA CON MEDIDAS A PAÑOS DE 80 X 80 CM, CONSTRUIDA POR CONTRAMARCO DE ÁNGULO DE 2 1/2\" X 3/16 MM, PARA RECIBIR MARCO DE ÁNGULO DE 2\" X 1/4 MM, TAPA DE 5 CM DE ESPESOR A BASE DE CONCRETO F'C= 200 KG/CM2, T.M.A. 13 MM, R.N., ADICIONADA CON FIBRA DE POLIPROPILENO EN PROPORCIÓN 200 GR/M3, REFORZADA CON MALLA ELECTROSOLDADA 6 X 6 - 10/10, Y DOS JALADERAS DE 15 CM TIPO GRAPA A BASE DE ALAMBRÓN EMBUTIDO EN TAPA, INCLUYE: HERRAMIENTA, ACARREOS, CORTES, SOLDADURAS, ANCLAJES, FIJACIÓN, DESPERDICIOS, MATERIALES, EQUIPO Y MANO DE OBRA.","PZA",1]
["C.2","CABALLERIZA",null,0,0,null,{"$f":"SUM(G127:G138)","v":0}]
["DOPI-094","SUMINISTRO, HABILITADO E INSTALACIÓN  DE ACERO ESTRUCTURAL  (ASTM 572-50 ) PARA SOPORTE DE CUBIERTA. INCLUYE:  NIVELACIÓN, ELEMENTOS DE FIJACIÓN, CORTES, SOLDADURA, ACARREOS, DESPERDICIO, MATERIAL, MANO DE OBRA, EQUIPO Y HERRAMIENTA.","KG",318.18]
["DOPI-095","EXCAVACIÓN POR MEDIOS MECÁNICOS EN MATERIAL TIPO II, DE 0.00 A -2.00 M DE PROFUNDIDAD, INCLUYE: ACARREO DEL MATERIAL A BANCO DE OBRA PARA SU POSTERIOR RETIRO, MANO DE OBRA, EQUIPO Y HERRAMIENTA. (MEDIDO EN TERRENO NATURAL POR SECCIÓN).","M3",0.74]
["DOPI-096","SUMINISTRO Y MONTAJE DE ESTRUCTURA SOBRE UNA PLACA DE ACERO DE 30X30CM Y 1/2\" DE ESPESOR CON CUATRO PERFORACIONES PARA ANCLAS DE 3/4\", INCLUYE: ANCLAS CON ACERO DE REFUERZO 6 VARILLAS DEL #4 Y E@ 15CM CON VARILLA DEL #3, AHOGADAS EN DADO DE CONCRETO 30X30 Y 60CM DE PROFUNDIDAD CON CONCRETO F´C=200KG/CM2 H.O. INCLUYE: MATERIALES, MANO DE OBRA,  HERRAMIENTA Y EQUIPO.","PZA",8]
["DOPI-097","SUMINISTRO E INSTALACIÓN DE LÁMINA METÁLICA EN CUBIERTA Y/O FACHADA, DE FIJACIÓN EXPUESTA, FABRICADA A BASE DE LÁMINA ACANALADA PINTRO TIPO RN-101 CAL. 24 COLOR BLANCO/FDO, INCLUYE: ANDAMIOS, MATERIALES, FLETE, HERRAMIENTA, EQUIPO Y MANO DE OBRA.","M2",39.31]
["DOPI-098","SUMINISTRO Y APLICACIÓN DE PINTURA DE ESMALTE, EN ELEMENTOS PTR DE 4\" CON UN DESARROLLO DE 40.6 CM, A UNA ALTURA DE 0 A 6 MTS, PREPARANDO LA SUPERFICIE, INCLUYE: MATERIALES, HERRAMIENTA Y  MANO DE OBRA.","M",36.86]
["DOPI-099","SUMINISTRO Y APLICACIÓN DE PINTURA DE ESMALTE A 4 CARAS, EN ELEMENTOS POLIN MONTEN DE 3\" CON UN DESRROLLO DE 30.5 CM, A UNA ALTURA DE 0 A 6 MTS, PREPARANDO LA SUPERFICIE, INCLUYE: MATERIALES, HERRAMIENTA Y  MANO DE OBRA.","M",98.28]
["DOPI-100","SALIDA ELÉCTRICA PARA LÁMPARA CON TUBO CONDUIT DIÁMETRO HASTA 3/4\" PARED GRUESA, 2HILOS CABLE CALIBRE 12, CON UN DESARROLLO DE HASTA 5 M. INCLUYE: CAJA, PLACA, REGISTROS, ACCESORIOS, ANDAMIOS, MATERIALES, EQUIPO, HERRAMIENTAS Y MANO DE OBRA.","SAL",1]
["DOPI-101","SUMINISTRO E INSTALACIÓN  DE TUBERIA CONDUIT GALVANIZADA DE 3/4\" PARED GRUESA. INCLUYE: MATERIAL, MANO DE OBRA, HERRAMIENTA Y ANDAMIOS.","M",61.43]
["DOPI-102","SUMINISTRO E INSTALACIÓN DE  CABLE DE COBRE THW CAL. 8, INCLUYE: MATERIALES, MANO DE OBRA, EQUIPO Y HERRAMIENTA.","M",122.85]
["DOPI-103","SUMINISTRO E INSTALACIÓN DE CABLE MONOPOLAR DE COBRE AISLAMIENTO THHW, 600V, CAL. 12 AWG MARCA CONDUMEX O SIMILAR, INCLUYE: HERRAMIENTA, MATERIALES, CONEXIÓN,  PRUEBAS, EQUIPO Y MANO DE OBRA.","M",122.85]
["DOPI-104","SALIDA ELECTRICA PARA CONTACTO DUPLEX POLARIZADO Y/O APAGADOR SENCILLO, OCULTA, CON TUBERIA CONDUIT GALVANIZADA PARED DELGADA DE HASTA 1\", CABLE VINANEL THW-LS 600 V. A 75° C, 90° C, MARCA CONDUCTORES MONTERREY O SIMILAR (VIAKON-PROTOCOLIZADO), CABLE VINANEL 21 THW-LS 600 V. A 75° C, 90° C, MARCA CONDUMEX (CONDUMEX PROTOCOLIZADO), CALIBRE 10 Y 12, CAJAS DE REGISTRO CUADRADAS, CHALUPAS Y TAPAS DE PVC REFORZADO, CONTACTO Y APAGADOR QUINZIÑO O SIMILAR, TAPA DE ALUMINIO, INCLUYE: HERRAMIENTA, TRAZO, RANURAS, CONEXIÓN A TIERRA, ACCESORIOS, MATERIALES MENORES Y DE CONSUMO, PRUEBAS, DESPERDICIOS Y ACARREO DEL MATERIAL AL SITIO DE SU COLOCACIÓN, A CUALQUIER NIVEL, EQUIPO Y MANO DE OBRA.","SAL",1]
["DOPI-105","SUMINISTRO E INSTALACIÓN DE LUMINARIA TIPO ESTANCA DE SOBREPONER O SUSPENDER IMPERMEABLE AL POLVO Y LA HUMEDAD DE DOS LÁMPARAS LED T8 DE 18W, LA  WP2X18. INCLUYE: INSTALACIÓN QUE INCLUYE ACCESORIOS,  ANDAMIOS, ELEVACIONES, HERRAMIENTAS, LIMPIEZA MANO DE OBRA.","PZA",1]
["C.3","BAÑOS PLANTA ALTA",null,0,0,null,{"$f":"SUM(G140:G183)","v":0}]
["DOPI-106","RASPADO DE MURO COMO PREPARACION PARA RECIBIR PINTURA (PINTURA ESMALTE, VINÍLICA, Y/O APLANADOS), A CUALQUIER ALTURA Y/O NIVEL, INCLUYE: HERRAMIENTA, EQUIPO, MANO DE OBRA, ANDAMIOS, DESMONAJE, PROTECCIÓN DE LETREROS TODO LO NECESARIO PARA SU CORRECTA EJECUCIÓN.","M2",60.81]
["DOPI-107","RESANE EN MUROS Y/O TECHO, CON MORTERO CEMENTO Y ARENA DE RIO 1:3, INCLUYE: MONTAJE Y DESMONTAJE DE LETREROS, ANDAMIOS, MATERIALES, MANO DE OBRA, EQUIPO Y  HERRAMIENTA.","M2",104.05]
["DOPI-108","APLANADO DE 2.50 CM DE ESPESOR EN MURO CON MORTERO CEMENTO-ARENA 1:3, ACABADO PULIDO O APALILLADO, INCLUYE: MATERIALES, ACARREOS, DESPERDICIOS, MANO DE OBRA, ANDAMIOS, PLOMEADO, NIVELADO, REGLEADO, RECORTES, MANO DE OBRA, EQUIPO Y HERRAMIENTA.","M2",104.05]
["DOPI-109","FILETES Y BOLEADOS, HECHOS CON MORTERO CEMENTO-ARENA EN PROPORCIÓN 1:3, TANTO INCLINADOS COMO VERTICALES A TIRO DE HILO Y ESCUADRA,  INCLUYE: DESPERDICIOS, ANDAMIOS Y ACARREO DE MATERIALES AL SITIO DE SU UTILIZACIÓN, A CUALQUIER NIVEL.","M",20.27]
["DOPI-110","SUMINISTRO Y APLICACIÓN DE PINTURA VINILICA COLOR  DOS MANOS COMO MINIMO, EN BOVEDAS Y FACHADAS EXTERIORES E INTERIORES,  CUALQUIER COLOR, A 3.50 M DE ALTURA, INCLUYE; PREPARACION DEL ÁREA, SELLADO, ANDAMIOS, MATERIAL Y MANO DE OBRA.","M2",121.62]
["DOPI-111","PINTURA ESMALTE CARA ABIERTA EN HERRERIA DE PUERTAS Y VENTANAS DE FACHADA, INCLUYE: RASPADO Y PREPARACION EL AREA, ANDAMIOS, MATERIALES, MANO DE OBRA , EQUIPO HERRAMIENTA Y LIMPIEZA.","M2",40.54]
["DOPI-112","RETIRO DE IMPERMEABILIZANTE DE MANTO PREFABRICADO Y RASPADANDO LA SUPERFICIE DE AZOTEAS DE FORMA MANUAL O MECANICO, CON COA, ESPATULA Y/O ESMERIL, INCLUYE: ACARREOS INTERNOS, MANO DE OBRA, EQUIPO, HERRAMIENTA Y APILE DEL MATERIAL DONDE INDIQUE SUPERVISION.","M2",54.05]
["DOPI-113","DEMOLICIÓN  DE LADRILLO DE AZOTEA Y MORTERO CON UN ESPESOR DE HASTA 5 CMS, INCLUYE: ACARREOS INTERNOS, MANO DE OBRA, EQUIPO, HERRAMIENTA Y APILE DEL MATERIAL DONDE INDIQUE SUPERVISIÓN.","M2",54.05]
["DOPI-114","SUMINISTRO E INSTALACIÓN DE LADRILLO DE AZOTEA CON MEDIDAS  DE 17 X 17 CMS ASENTADO CON MORTERO CEMENTO-ARENA 1:4, INCLUYE:  MATERIALES, ACARREOS, ELEVACIÓN, CORTES, DESPERDICIOS, TRASLAPES, MANO DE OBRA. EQUIPO Y HERRAMIENTA.","M2",54.05]
["DOPI-115","LECHADA EN LADRILLO DE AZOTEA Y/O HORMIGON, CON CEMENTO ARENA DE RIÓ Y FESTERGRAL (IMPERMEABILIZANTE INTEGRAL), INCLUYE: MATERIALES, MANO DE OBRA. EQUIPO Y HERRAMIENTA, ACARREOS, ELEVACIÓN, CORTES, DESPERDICIOS, TRASLAPES.","M2",54.05]
["DOPI-116","IMPERMEABILIZACION SOBRE LADRILLO DE AZOTEA, MCA. ACRITON PLUS, EN 2 CAPAS A RAZON DE 1 CAPA DE ACRITON SIN DILUIR CON RENDIMIENTO DE 0.5 LT/M2 DEJANDO SECAR 24 HR. Y UNA 2a. CAPA EN SENTIDO CRUZADO A LA PRIMERA CON RENDIMIENTO DE 0.5 LT/M2.  INCLUYE: RASPADO Y PREPARACION DE LA SUPERFICIE, CON GARANTIA DE 6 AÑOS.","M2",54.05]
["DOPI-117","DEMOLICIÓN DE CONCRETO SIMPLE EN BANQUETAS, POR MEDIOS MECÁNICOS, INCLUYE: ACARREO DEL MATERIAL A BANCO DE OBRA PARA SU POSTERIOR RETIRO Y LIMPIEZA DEL ÁREA DE LOS TRABAJOS, MANO DE OBRA, EQUIPO Y HERRAMIENTA.","M3",3.51]
["DOPI-118","SUMINISTRO Y ELABORACION DE PISO DE CONCRETO DE 8 CM DE ESPESOR CON CONCRETO F´C=150 KG/CM² T.M.A. 3/4\", HECHO EN OBRA, CON REFUERZO DE FIBRA INTEGRAL A RAZON DE 600 GRAMOS POR CADA M3 DE CONCRETO, ACABADO ESCOBILLADO, CON DOBLADOR EN PERIMETRO Y DIVISIONES A CADA 1.00 MTS, INCLUYE: , CIMBRA, COLADO, VIBRADO, CURADO CON CURACRETO BLANCO, HERRAMIENTA, EQUIPO, MANO DE OBRA.","M2",30.41]
["DOPI-119","SALIDA ELÉCTRICA PARA LÁMPARA CON TUBO CONDUIT DIÁMETRO HASTA 3/4\" PARED GRUESA, 2HILOS CABLE CALIBRE 12, CON UN DESARROLLO DE HASTA 5 M. INCLUYE: CAJA, PLACA, REGISTROS, ACCESORIOS, ANDAMIOS, MATERIALES, EQUIPO, HERRAMIENTAS Y MANO DE OBRA.","SAL",8]
["DOPI-120","SUMINISTRO E INSTALACIÓN DE  CABLE DE COBRE THW CAL. 8, INCLUYE: MATERIALES, MANO DE OBRA, EQUIPO Y HERRAMIENTA.","M",472.97]
["DOPI-121","CABLE DE COBRE O THW CAL. No. 12 AWG, MCA. CONDUMEX O MONTERREY.  INCLUYE: DESPERDICIO, FLETES, MANIOBRAS, ACARREO, COLOCACIÓN A CUALQUIER NIVEL, PRUEBAS, MATERIALES MENORES Y HERRAMIENTA NECESARIA.","M",472.97]
["DOPI-122","SALIDA ELECTRICA PARA CONTACTO DUPLEX POLARIZADO Y/O APAGADOR SENCILLO, OCULTA, CON TUBERIA CONDUIT GALVANIZADA PARED DELGADA DE HASTA 1\", CABLE VINANEL THW-LS 600 V. A 75° C, 90° C, MARCA CONDUCTORES MONTERREY O SIMILAR (VIAKON-PROTOCOLIZADO), CABLE VINANEL 21 THW-LS 600 V. A 75° C, 90° C, MARCA CONDUMEX (CONDUMEX PROTOCOLIZADO), CALIBRE 10 Y 12, CAJAS DE REGISTRO CUADRADAS, CHALUPAS Y TAPAS DE PVC REFORZADO, CONTACTO Y APAGADOR QUINZIÑO O SIMILAR, TAPA DE ALUMINIO, INCLUYE: HERRAMIENTA, TRAZO, RANURAS, CONEXIÓN A TIERRA, ACCESORIOS, MATERIALES MENORES Y DE CONSUMO, PRUEBAS, DESPERDICIOS Y ACARREO DEL MATERIAL AL SITIO DE SU COLOCACIÓN, A CUALQUIER NIVEL, EQUIPO Y MANO DE OBRA.","SAL ",8]
["DOPI-123","SUMINISTRO E INSTALACIÓN DE LUMINARIA TIPO ESTANCA DE SOBREPONER O SUSPENDER IMPERMEABLE AL POLVO Y LA HUMEDAD DE DOS LÁMPARAS LED T8 DE 18W, LA  WP2X18. INCLUYE: INSTALACIÓN QUE INCLUYE ACCESORIOS,  ANDAMIOS, ELEVACIONES, HERRAMIENTAS, LIMPIEZA MANO DE OBRA.","PZA",8]
["DOPI-124","CARGA Y ACARREO EN CARRETILLA A 20.00 MT. DE DISTANCIA DE MATERIAL PRODUCTO DE LA EXCAVACION Y/O DEMOLICION.  INCLUYE: HERRAMIENTA MENOR Y MANO DE OBRA. VOLUMEN MEDIDO EN SECCIONES.","M3",57.03]
["DOPI-125","CARGA MECÁNICA Y ACARREO EN CAMIÓN A TIRADERO OFICIAL FUERA DE LA OBRA , DE MATERIAL PRODUCTO DE EXCAVACIÓN, DEMOLICIÓN Y/O ESCOMBROS, INCLUYE: REGALÍAS AL BANCO DE TIRO, MANO DE OBRA, EQUIPO Y HERRAMIENTA.","M3",57.03]
["DOPI-126","SUMINISTRO Y COLOCACION DE TINACO TRICAPA DE 1500 LTS ROTOPLAS CON ACCESORIOS DE VALVULA DE LLENADO, MULTICONECTOR CON VALVULA ESFERA Y TUERCA UNION, FLOTADOR NUMERO 5, JARRO DE AIRE Y FILTRO ESTANDAR, INCLUYE: ACARREO, ELEVACIONES, CORTES, FIJACION, LIMPIEZA GRUESA, MATERIALES, MANO DE OBRA, EQUIPO Y HERRAMIENTA.","PZA",1]
["DOPI-127","SUMINISTRO Y COLOCACIÓN DE TUBO DE PVC DE 8\" DE DIÁMETRO, INCLUYE: ACARREOS, MATERIALES, MANO DE OBRA, EQUIPO Y HERRAMIENTA.","M",540.54]
["DOPI-128","EXCAVACIÓN POR MEDIOS MANUALES DE 0.00 A -2.00 M, AUTORIZADA EN SITIO POR SUPERVISIÓN, EN MATERIAL TIPO II,  INCLUYE: RETIRO DEL MATERIAL A BANCO DE OBRA INDICADO POR SUPERVISIÓN, ABUNDAMIENTO, MANO DE OBRA, EQUIPO Y HERRAMIENTA.","M3",24.32]
["DOPI-129","PLANTILLA DE 10 CM DE ESPESOR DE CONCRETO HECHO EN OBRA DE F´C=150 KG/CM2, INCLUYE: PREPARACIÓN DE LA SUPERFICIE, NIVELACIÓN, MUESTREADO, COLADO, MANO DE OBRA, EQUIPO Y HERRAMIENTA.","M3",12.16]
["DOPI-130","SUMINISTRO Y COLOCACION DE CISTERNA DE POLIETILENO DE ALTA DENSIDAD CAP. 5,000 LTS. MCA. ROTOPLAS. INCLUYE: 1 VALVULA ESFERA DE 3/4\" CON REDUCCION A 1/2\", 1 FILTRO DE PASO, 1 BOMBA DE 0.5 HP, 1 VALVULA DE TANQUE ALTO DE 3/4\" CON REDUCCION A 1/2\" ,1 FLOTADOR, 2  ELECTRONIVELES, 1  PICHANCHA Y TUBERIA, SUMINISTRO Y COLOCACION, BASE SOPORTE DE ARENA DE RIO DE ACUERDO CON LAS INDICACIONES DEL FABRICANTE, EXCAVACION CON SECCION DE 2.00 X 2.00 X 1.90 MTS., MATERIAL, MANO DE OBRA Y HERRAMIENTA.","PZA",1]
["DOPI-131","RELLENO CON MATERIAL PRODUCTO DE LA EXCAVACIÓN COMPACTADO CON PIZÓN EN CAPAS NO MAYORES DE 20 CMS. INCLUYE: ACARREOS, EQUIPO, HERRAMIENTA Y MANO DE OBRA","M3",13.51]
["DOPI-132","MURO TIPO TEZON DE BLOCK 11 X 14 X 28 CM ASENTADO CON MORTERO CEMENTO-ARENA 1:3, ACABADO COMÚN, INCLUYE: MATERIALES, MANO DE OBRA, EQUIPO Y HERRAMIENTA.","M2",6.76]
["DOPI-133","RELLENO EN CEPAS O MESETAS CON MATERIAL DE BANCO, COMPACTADO AL 90% ± 2 DE SU P.V.S.M., PRUEBA AASHTO ESTANDAR, CBR DEL 5% MÍNIMO, EN CAPAS NO MAYORES DE 20 CM, INCLUYE: INCORPORACIÓN DE AGUA NECESARIA, MANO DE OBRA, EQUIPO Y HERRAMIENTA, MEDIDO EN TERRENO NATURAL POR SECCIÓN SEGÚN PROYECTOS.","M3",4.05]
["DOPI-134","APLANADO DE 2.50 CM DE ESPESOR EN MURO CON MORTERO CEMENTO-ARENA 1:3, ACABADO PULIDO O APALILLADO, INCLUYE: MATERIALES, ACARREOS, DESPERDICIOS, MANO DE OBRA, ANDAMIOS, PLOMEADO, NIVELADO, REGLEADO, RECORTES, MANO DE OBRA, EQUIPO Y HERRAMIENTA.","M2",6.76]
["DOPI-135","SUMINISTRO Y ELABORACION DE PISO DE CONCRETO DE 8 CM DE ESPESOR CON CONCRETO F´C=150 KG/CM² T.M.A. 3/4\", HECHO EN OBRA, CON REFUERZO DE FIBRA INTEGRAL A RAZON DE 600 GRAMOS POR CADA M3 DE CONCRETO, ACABADO ESCOBILLADO, CON DOBLADOR EN PERIMETRO Y DIVISIONES A CADA 1.00 MTS, INCLUYE: , CIMBRA, COLADO, VIBRADO, CURADO CON CURACRETO BLANCO, HERRAMIENTA, EQUIPO, MANO DE OBRA.","M2",8.44]
["DOPI-136","SUMINISTRO Y COLOCACIÓN DE TAPA PARA REGISTRO DE CISTERNA CON MEDIDAS A PAÑOS DE 80 X 80 CM, CONSTRUIDA POR CONTRAMARCO DE ÁNGULO DE 2 1/2\" X 3/16 MM, PARA RECIBIR MARCO DE ÁNGULO DE 2\" X 1/4 MM, TAPA DE 5 CM DE ESPESOR A BASE DE CONCRETO F'C= 200 KG/CM2, T.M.A. 13 MM, R.N., ADICIONADA CON FIBRA DE POLIPROPILENO EN PROPORCIÓN 200 GR/M3, REFORZADA CON MALLA ELECTROSOLDADA 6 X 6 - 10/10, Y DOS JALADERAS DE 15 CM TIPO GRAPA A BASE DE ALAMBRÓN EMBUTIDO EN TAPA, INCLUYE: HERRAMIENTA, ACARREOS, CORTES, SOLDADURAS, ANCLAJES, FIJACIÓN, DESPERDICIOS, MATERIALES, EQUIPO Y MANO DE OBRA.","PZA",1]
["DOPI-137","LINEA DE LLENADO PARA TINACO ELEVADO A BASE DE TUBERIA DE ACERO GALVANIZADO DE 1 1/4\" DESDE BOMBA DE CISTERNA, INCLUYE: RANURAS, RESANES, NIPLES, CORTES, MATERIAL, HERRAMIENTA Y MANO DE OBRA.","PZA",1]
["DOPI-138","SUMINISTRO E INSTALACION DE DOSIFICADOR DE JABON ESPUMA/FOAM CON DEPOSITO RELLENABLE DE 800ML CODIGO: AC45000. INCLUYE: MATERIAL, HERRAMIENTA, EQUIPO Y MANO DE OBRA,","PZA",10]
["DOPI-139","SUMINISTRO E INSTALACION DE DISPENSADOR DE PAPEL HIGIENICO EN ROLLO CONTINUO- KIMBERLY CLARCK, INCLUYE: ANCLAJE, MANO DE OBRA, ACCESORIOS, EQUIPO Y HERRAMIENTA.","PZA",9]
["DOPI-140","SUMINISTRO Y COLOCACIÓN DE ESPEJO FLOTADO RECTANGULAR BISELADO DE 6 MM INCLINACIÓN DE 10°, INCLUYE: MATERIALES MENORES Y DE CONSUMO,  ELEMENTOS DE FIJACION, MARCO DE ALUMINIO DE 2\", VINILO, PIJAS, HERRAMIENTAS, LIMPIEZA Y MANO DE OBRA ESPECIALIZADA.","M2",4.05]
["DOPI-141","BARRA PARA EMPOTRAR LAVABOS DE 0.60 MTS. DE ANCHO Y 0.10 MTS. DE ESPESOR CON CONCRETO DE F'c=150 KG/CM2 ARMADA CON VARILLA DE 3/8\" A CADA 15 CM. AMBOS SENTIDOS ACABADO CON AZULEJO MCA. INTERCERAMIC DE 20 X 20 CM, MODELO ASTRATTO BLANCO ANTIBACTERIAL PEGADO CON CEMENTO CREST O SIMILAR. INCLUYE: SUMINISTRO Y ELABORACION, TRAZO, NIVELACION, CIMBRA, DESCIMBRA, MATERIAL Y MANO DE OBRA.","M",5.41]
["DOPI-142","SUMINISTRO E INSTALACIÓN DE LAVABO OVALIN DE SUBMONTAR, DE PORCELANA, COLOR BLANCO MODELO BARBADOS DE 60 X 40 X 10 CM DE ALTURA, INCLUYE: MANO DE OBRA, COLOCACIÓN,CESPOL DE LATON ACABADO CROMADO, EQUIPO, HERRAMIENTA Y ACARREOS. EN CUALQUIER NIVEL.","PZA",5]
["DOPI-143","SUMINISTRO  Y  COLOCACIÓN DE LLAVE MEZCLADORA MONOMANDO, ECONOMIZADORA, MODELO TV-105, MARCA HELVEX O SIMILAR, LATON O SIMILAR, INCLUYE: PAQUETE DE INSTALACION DE LAVABO COFLEX, ACCESORIOS, CONEXIONES, MATERIALES, MANO DE OBRA, EQUIPO Y HERRAMIENTA.","PZA",5]
["DOPI-144","CORTE CON DISCO DE DIAMANTE HASTA 1/3 DE ESPESOR DE LA LOSA Y HASTA 3 MM DE ANCHO, INCLUYE: EQUIPO, PREPARACIONES Y MANO DE OBRA.","M",12.97]
["DOPI-145","DEMOLICIÓN DE CONCRETO SIMPLE EN BANQUETAS, POR MEDIOS MECÁNICOS, INCLUYE: ACARREO DEL MATERIAL A BANCO DE OBRA PARA SU POSTERIOR RETIRO Y LIMPIEZA DEL ÁREA DE LOS TRABAJOS, MANO DE OBRA, EQUIPO Y HERRAMIENTA.","M3",0.12]
["DOPI-146","EXCAVACIÓN POR MEDIOS MECÁNICOS EN MATERIAL TIPO II, DE 0.00 A -2.00 M DE PROFUNDIDAD, INCLUYE: ACARREO DEL MATERIAL A BANCO DE OBRA PARA SU POSTERIOR RETIRO, MANO DE OBRA, EQUIPO Y HERRAMIENTA. (MEDIDO EN TERRENO NATURAL POR SECCIÓN).","M3",1.23]
["DOPI-147","SUMINISTRO Y MONTAJE DE ESTRUCTURA SOBRE UNA PLACA DE ACERO DE 30X30CM Y 1/2\" DE ESPESOR CON CUATRO PERFORACIONES PARA ANCLAS DE 3/4\", INCLUYE: ANCLAS CON ACERO DE REFUERZO 6 VARILLAS DEL #4 Y E@ 15CM CON VARILLA DEL #3, AHOGADAS EN DADO DE CONCRETO 30X30 Y 60CM DE PROFUNDIDAD CON CONCRETO F´C=200KG/CM2 H.O. INCLUYE: MATERIALES, MANO DE OBRA,  HERRAMIENTA Y EQUIPO.","PZA",10]
["DOPI-148","SUMINISTRO, HABILITADO E INSTALACIÓN  DE ACERO ESTRUCTURAL  (ASTM 572-50 ) PARA SOPORTE DE CUBIERTA. INCLUYE:  NIVELACIÓN, ELEMENTOS DE FIJACIÓN, CORTES, SOLDADURA, ACARREOS, DESPERDICIO, MATERIAL, MANO DE OBRA, EQUIPO Y HERRAMIENTA.","KG",810.81]
["DOPI-149","SUMINISTRO Y COLOCACION DE POLICARBONATO DE ALTA TECNOLOGIA CON PROTECCION A RAYOS UV DE 6 MM, HASTA UNA ALTURA DE 3.00 M, CUALQUIER COLOR, INCLUYE: PREPARACION DEL AREA DE TRABAJO, ELEMENTOS DE FIJACION Y ANCLAJE, SELLO CON MATERIAL ELASTICO SIKAFLEX 1A O SIMILAR , CORTES, DESPERDICIOS, ACARREO Y ELEVACION, ANDAMIOS, MATERIALES, MANO DE OBRA ESPECIALIZADA, EQUIPO Y HERRAMIENTA.","M2",40.54]
["C.4","PLANTA ALTA CASETA DE INGRESO",null,0,0,null,{"$f":"SUM(G185:G203)","v":0}]
["DOPI-150","RASPADO DE MURO COMO PREPARACION PARA RECIBIR PINTURA (PINTURA ESMALTE, VINÍLICA, Y/O APLANADOS), A CUALQUIER ALTURA Y/O NIVEL, INCLUYE: HERRAMIENTA, EQUIPO, MANO DE OBRA, ANDAMIOS, DESMONAJE, PROTECCIÓN DE LETREROS TODO LO NECESARIO PARA SU CORRECTA EJECUCIÓN.","M2",67.569999999999993]
["DOPI-151","RESANE EN MUROS Y/O TECHO, CON MORTERO CEMENTO Y ARENA DE RIO 1:3, INCLUYE: MONTAJE Y DESMONTAJE DE LETREROS, ANDAMIOS, MATERIALES, MANO DE OBRA, EQUIPO Y  HERRAMIENTA.","M2",67.569999999999993]
["DOPI-152","APLANADO DE 2.50 CM DE ESPESOR EN MURO CON MORTERO CEMENTO-ARENA 1:3, ACABADO PULIDO O APALILLADO, INCLUYE: MATERIALES, ACARREOS, DESPERDICIOS, MANO DE OBRA, ANDAMIOS, PLOMEADO, NIVELADO, REGLEADO, RECORTES, MANO DE OBRA, EQUIPO Y HERRAMIENTA.","M2",67.569999999999993]
["DOPI-153","BOQUILLA DE 15 A 20 CM DE ANCHO, CON MORTERO CAL - ARENA PROPORCIÓN 1:3, ACABADO REPELLADO, EN APERTURA DE VANOS DE PUERTAS Y VENTANAS, INCLUYE: HERRAMIENTA, PLOMEADO, NIVELADO, DESPERDICIOS, MATERIALES, EQUIPO Y MANO DE OBRA.","M",20.27]
["DOPI-154","SUMINISTRO Y APLICACIÓN DE PINTURA VINILICA COLOR  DOS MANOS COMO MINIMO, EN BOVEDAS Y FACHADAS EXTERIORES E INTERIORES,  CUALQUIER COLOR, A 3.50 M DE ALTURA, INCLUYE; PREPARACION DEL ÁREA, SELLADO, ANDAMIOS, MATERIAL Y MANO DE OBRA.","M2",270.27]
["DOPI-155","PINTURA ESMALTE CARA ABIERTA EN HERRERIA DE PUERTAS Y VENTANAS DE FACHADA, INCLUYE: RASPADO Y PREPARACION EL AREA, ANDAMIOS, MATERIALES, MANO DE OBRA , EQUIPO HERRAMIENTA Y LIMPIEZA.","M2",57.74]
["DOPI-156","RETIRO DE IMPERMEABILIZANTE DE MANTO PREFABRICADO Y RASPADANDO LA SUPERFICIE DE AZOTEAS DE FORMA MANUAL O MECANICO, CON COA, ESPATULA Y/O ESMERIL, INCLUYE: ACARREOS INTERNOS, MANO DE OBRA, EQUIPO, HERRAMIENTA Y APILE DEL MATERIAL DONDE INDIQUE SUPERVISION.","M2",270.27]
["DOPI-157","DEMOLICIÓN  DE LADRILLO DE AZOTEA Y MORTERO CON UN ESPESOR DE HASTA 5 CMS, INCLUYE: ACARREOS INTERNOS, MANO DE OBRA, EQUIPO, HERRAMIENTA Y APILE DEL MATERIAL DONDE INDIQUE SUPERVISIÓN.","M2",270.27]
["DOPI-158","SUMINISTRO E INSTALACIÓN DE LADRILLO DE AZOTEA CON MEDIDAS  DE 17 X 17 CMS ASENTADO CON MORTERO CEMENTO-ARENA 1:4, INCLUYE:  MATERIALES, ACARREOS, ELEVACIÓN, CORTES, DESPERDICIOS, TRASLAPES, MANO DE OBRA. EQUIPO Y HERRAMIENTA.","M2",270.27]
["DOPI-159","LECHADA EN LADRILLO DE AZOTEA Y/O HORMIGON, CON CEMENTO ARENA DE RIÓ Y FESTERGRAL (IMPERMEABILIZANTE INTEGRAL), INCLUYE: MATERIALES, MANO DE OBRA. EQUIPO Y HERRAMIENTA, ACARREOS, ELEVACIÓN, CORTES, DESPERDICIOS, TRASLAPES.","M2",270.27]
["DOPI-160","IMPERMEABILIZACION SOBRE LADRILLO DE AZOTEA, MCA. ACRITON PLUS, EN 2 CAPAS A RAZON DE 1 CAPA DE ACRITON SIN DILUIR CON RENDIMIENTO DE 0.5 LT/M2 DEJANDO SECAR 24 HR. Y UNA 2a. CAPA EN SENTIDO CRUZADO A LA PRIMERA CON RENDIMIENTO DE 0.5 LT/M2.  INCLUYE: RASPADO Y PREPARACION DE LA SUPERFICIE, CON GARANTIA DE 6 AÑOS.","M2",270.27]
["DOPI-161","SALIDA ELÉCTRICA PARA LÁMPARA CON TUBO CONDUIT DIÁMETRO HASTA 3/4\" PARED GRUESA, 2HILOS CABLE CALIBRE 12, CON UN DESARROLLO DE HASTA 5 M. INCLUYE: CAJA, PLACA, REGISTROS, ACCESORIOS, ANDAMIOS, MATERIALES, EQUIPO, HERRAMIENTAS Y MANO DE OBRA.","SAL",9]
["DOPI-162","SUMINISTRO E INSTALACIÓN DE  CABLE DE COBRE THW CAL. 8, INCLUYE: MATERIALES, MANO DE OBRA, EQUIPO Y HERRAMIENTA.","M",472.97]
["DOPI-163","CABLE DE COBRE O THW CAL. No. 12 AWG, MCA. CONDUMEX O MONTERREY.  INCLUYE: DESPERDICIO, FLETES, MANIOBRAS, ACARREO, COLOCACIÓN A CUALQUIER NIVEL, PRUEBAS, MATERIALES MENORES Y HERRAMIENTA NECESARIA.","M",472.97]
["DOPI-164","SALIDA ELECTRICA PARA CONTACTO DUPLEX POLARIZADO Y/O APAGADOR SENCILLO, OCULTA, CON TUBERIA CONDUIT GALVANIZADA PARED DELGADA DE HASTA 1\", CABLE VINANEL THW-LS 600 V. A 75° C, 90° C, MARCA CONDUCTORES MONTERREY O SIMILAR (VIAKON-PROTOCOLIZADO), CABLE VINANEL 21 THW-LS 600 V. A 75° C, 90° C, MARCA CONDUMEX (CONDUMEX PROTOCOLIZADO), CALIBRE 10 Y 12, CAJAS DE REGISTRO CUADRADAS, CHALUPAS Y TAPAS DE PVC REFORZADO, CONTACTO Y APAGADOR QUINZIÑO O SIMILAR, TAPA DE ALUMINIO, INCLUYE: HERRAMIENTA, TRAZO, RANURAS, CONEXIÓN A TIERRA, ACCESORIOS, MATERIALES MENORES Y DE CONSUMO, PRUEBAS, DESPERDICIOS Y ACARREO DEL MATERIAL AL SITIO DE SU COLOCACIÓN, A CUALQUIER NIVEL, EQUIPO Y MANO DE OBRA.","SAL ",9]
["DOPI-165","SUMINISTRO E INSTALACIÓN DE LUMINARIA TIPO ESTANCA DE SOBREPONER O SUSPENDER IMPERMEABLE AL POLVO Y LA HUMEDAD DE DOS LÁMPARAS LED T8 DE 18W, LA  WP2X18. INCLUYE: INSTALACIÓN QUE INCLUYE ACCESORIOS,  ANDAMIOS, ELEVACIONES, HERRAMIENTAS, LIMPIEZA MANO DE OBRA.","PZA",5]
["DOPI-166","SUMINISTRO E INSTALACION DE PISO PORCELÁNICO TURIN DALTILE 60 X 60 CM ACABADO RECTIFICADO PULIDO BRILLANTE, INCLUYE: MATERIALES, MANO DE OBRA, ADHESIVOS, PREPARACION DEL AREA Y JUNTEO.","M2",270.27]
["DOPI-167","SUMINISTRO E INSTALACION DE ZOCLO PORCELÁNICO TURIN DALTILE 10 X 60 CM ACABADO RECTIFICADO PULIDO BRILLANTE, INCLUYE: MATERIALES, MANO DE OBRA, ADHESIVOS, PREPARACION DEL AREA,  JUNTEO Y TODO LO NECESARIO PARA SU CORRECTA EJECUCION.","M",54.05]
["DOPI-168","SUMINISTRO Y COLOCACIÓN DE HERRERIA DE ALUMINIO BLANCO Y/O NATURAL CON PERFIL TIPO BOLSA DE 3\" Y CRISTAL CLARO DE 6 MM. INCLUYE: MATERIALES, MANO DE OBRA , EQUIPO, HERRAMIENTA Y SELLADO.","M2",12.16]
["C.5","CASETA DE INGRESO PLANTA BAJA",null,0,0,null,{"$f":"SUM(G205:G224)","v":0}]
["DOPI-169","RASPADO DE MURO COMO PREPARACION PARA RECIBIR PINTURA (PINTURA ESMALTE, VINÍLICA, Y/O APLANADOS), A CUALQUIER ALTURA Y/O NIVEL, INCLUYE: HERRAMIENTA, EQUIPO, MANO DE OBRA, ANDAMIOS, DESMONAJE, PROTECCIÓN DE LETREROS TODO LO NECESARIO PARA SU CORRECTA EJECUCIÓN.","M2",33.78]
["DOPI-170","RESANE EN MUROS Y/O TECHO, CON MORTERO CEMENTO Y ARENA DE RIO 1:3, INCLUYE: MONTAJE Y DESMONTAJE DE LETREROS, ANDAMIOS, MATERIALES, MANO DE OBRA, EQUIPO Y  HERRAMIENTA.","M2",33.78]
["DOPI-171","APLANADO DE 2.50 CM DE ESPESOR EN MURO CON MORTERO CEMENTO-ARENA 1:3, ACABADO PULIDO O APALILLADO, INCLUYE: MATERIALES, ACARREOS, DESPERDICIOS, MANO DE OBRA, ANDAMIOS, PLOMEADO, NIVELADO, REGLEADO, RECORTES, MANO DE OBRA, EQUIPO Y HERRAMIENTA.","M2",30.71]
["DOPI-172","SUMINISTRO Y COLOCACIÓN DE HERRERIA DE ALUMINIO BLANCO Y/O NATURAL CON PERFIL TIPO BOLSA DE 3\" Y CRISTAL CLARO DE 6 MM. INCLUYE: MATERIALES, MANO DE OBRA , EQUIPO, HERRAMIENTA Y SELLADO.","M2",12.16]
["DOPI-173","BOQUILLA DE 15 A 20 CM DE ANCHO, CON MORTERO CAL - ARENA PROPORCIÓN 1:3, ACABADO REPELLADO, EN APERTURA DE VANOS DE PUERTAS Y VENTANAS, INCLUYE: HERRAMIENTA, PLOMEADO, NIVELADO, DESPERDICIOS, MATERIALES, EQUIPO Y MANO DE OBRA.","M",20.27]
["DOPI-174","SUMINISTRO Y APLICACIÓN DE PINTURA VINILICA COLOR  DOS MANOS COMO MINIMO, EN BOVEDAS Y FACHADAS EXTERIORES E INTERIORES,  CUALQUIER COLOR, A 3.50 M DE ALTURA, INCLUYE; PREPARACION DEL ÁREA, SELLADO, ANDAMIOS, MATERIAL Y MANO DE OBRA.","M2",202.7]
["DOPI-175","PINTURA ESMALTE CARA ABIERTA EN HERRERIA DE PUERTAS Y VENTANAS DE FACHADA, INCLUYE: RASPADO Y PREPARACION EL AREA, ANDAMIOS, MATERIALES, MANO DE OBRA , EQUIPO HERRAMIENTA Y LIMPIEZA.","M2",24.32]
["DOPI-176","SUMINISTRO Y APLICACIÓN DE PINTURA DE ESMALTE CARA CERRADA COLOR BLANCO Y/O  GRIS EN PORTONES DE LÁMINA EXISTENTES INCLUYE; PREPARACION DEL ÁREA, ANDAMIOS, MATERIAL, MANO DE OBRA, EQUIPO Y HERRAMIENTA.","M2",8.11]
["DOPI-177","SUMINISTRO, HABILITADO E INSTALACIÓN  DE ACERO ESTRUCTURAL  (ASTM 572-50 ) PARA SOPORTE DE CUBIERTA. INCLUYE:  NIVELACIÓN, ELEMENTOS DE FIJACIÓN, CORTES, SOLDADURA, ACARREOS, DESPERDICIO, MATERIAL, MANO DE OBRA, EQUIPO Y HERRAMIENTA.","KG",2925.67]
["DOPI-178","PINTURA ESMALTE CARA ABIERTA EN HERRERIA DE PUERTAS Y VENTANAS DE FACHADA, INCLUYE: RASPADO Y PREPARACION EL AREA, ANDAMIOS, MATERIALES, MANO DE OBRA , EQUIPO HERRAMIENTA Y LIMPIEZA.","M2",33.78]
["DOPI-179","SALIDA ELÉCTRICA PARA LÁMPARA CON TUBO CONDUIT DIÁMETRO HASTA 3/4\" PARED GRUESA, 2HILOS CABLE CALIBRE 12, CON UN DESARROLLO DE HASTA 5 M. INCLUYE: CAJA, PLACA, REGISTROS, ACCESORIOS, ANDAMIOS, MATERIALES, EQUIPO, HERRAMIENTAS Y MANO DE OBRA.","SAL",19]
["DOPI-180","SALIDA ELÉCTRICA PARA CONTACTO DUPLEX POLARIZADO Y/O APAGADOR SENCILLO, OCULTA, CON TUBERÍA Y CONEXIONES CONDUIT DE PVC PESADO DE 13 Y 19 MM DE DIÁMETRO, CABLE VINANEL THW-LS 600 V. A 75° C, 90° C, MARCA CONDUCTORES MONTERREY O SIMILAR (VIAKON-PROTOCOLIZADO), CABLE VINANEL 21 THW-LS 600 V. A 75° C, 90° C, MARCA CONDUMEX (CONDUMEX PROTOCOLIZADO), CALIBRE 10 Y 12, CAJAS DE REGISTRO CUADRADAS, CHALUPAS Y TAPAS DE PVC REFORZADO, CONTACTO Y APAGADOR QUINZIÑO O SIMILAR, TAPA DE ALUMINIO, INCLUYE: HERRAMIENTA, TRAZO, RANURAS, CONEXIÓN A TIERRA, ACCESORIOS, MATERIALES MENORES Y DE CONSUMO, PRUEBAS, DESPERDICIOS Y ACARREO DEL MATERIAL AL SITIO DE SU COLOCACIÓN, A CUALQUIER NIVEL, EQUIPO Y MANO DE OBRA.","SAL",13]
["DOPI-181","SALIDA ELECTRICA PARA CONTACTO DUPLEX POLARIZADO Y/O APAGADOR SENCILLO, OCULTA, CON TUBERIA CONDUIT GALVANIZADA PARED DELGADA DE HASTA 1\", CABLE VINANEL THW-LS 600 V. A 75° C, 90° C, MARCA CONDUCTORES MONTERREY O SIMILAR (VIAKON-PROTOCOLIZADO), CABLE VINANEL 21 THW-LS 600 V. A 75° C, 90° C, MARCA CONDUMEX (CONDUMEX PROTOCOLIZADO), CALIBRE 10 Y 12, CAJAS DE REGISTRO CUADRADAS, CHALUPAS Y TAPAS DE PVC REFORZADO, CONTACTO Y APAGADOR QUINZIÑO O SIMILAR, TAPA DE ALUMINIO, INCLUYE: HERRAMIENTA, TRAZO, RANURAS, CONEXIÓN A TIERRA, ACCESORIOS, MATERIALES MENORES Y DE CONSUMO, PRUEBAS, DESPERDICIOS Y ACARREO DEL MATERIAL AL SITIO DE SU COLOCACIÓN, A CUALQUIER NIVEL, EQUIPO Y MANO DE OBRA.","SAL",13]
["DOPI-182","SALIDA  ELÉCTRICA  PARA ALIMENTACIÓN DE CENTRO DE CARGA  CON  TUBERIA CONDUIT PARED GRUESA DE  1 1/4\", 2 HILOS  CABLE CALIBRE 12 ,   CON UN DESARROLLO  DE HASTA 20 M. INCLUYE:   CAJA,  PLACA,   REGISTROS  Y ACCESORIOS, ANDAMIOS, MATERIALES, EQUIPO,  HERRAMIENTAS   Y MANO DE  OBRA.","SAL",2]
["DOPI-183","SUMINISTRO Y COLOCACIÓN DE CENTRO DE CARGA QO2 NEMA 1 TIPO SOBREPONER, INCLUYE: MATERIALES, MANO DE OBRA Y HERRAMIENTA","PZA",2]
["DOPI-184","SUMINISTRO Y COLOCACIÓN DE CENTRO DE CARGA QO4 NEMA 1 TIPO SOBREPONER, INCLUYE: MATERIALES, MANO DE OBRA Y HERRAMIENTA","PZA",6]
["DOPI-185","SUMINISTRO Y COLOCACIÓN DE INTERRUPTOR TERMOMAGNETICO DE 1X15-30 AMP. INCLUYE: MATERIAL, MANO DE OBRA Y HERRAMIENTA","PZA",13]
["DOPI-186","SUMINISTRO E INSTALACIÓN DE  CABLE DE COBRE THW CAL. 8, INCLUYE: MATERIALES, MANO DE OBRA, EQUIPO Y HERRAMIENTA.","M",2027.03]
["DOPI-187","CABLE DE COBRE O THW CAL. No. 12 AWG, MCA. CONDUMEX O MONTERREY.  INCLUYE: DESPERDICIO, FLETES, MANIOBRAS, ACARREO, COLOCACIÓN A CUALQUIER NIVEL, PRUEBAS, MATERIALES MENORES Y HERRAMIENTA NECESARIA.","M",2027.03]
["DOPI-188","SUMINISTRO E INSTALACIÓN DE LUMINARIA TIPO ESTANCA DE SOBREPONER O SUSPENDER IMPERMEABLE AL POLVO Y LA HUMEDAD DE DOS LÁMPARAS LED T8 DE 18W, LA  WP2X18. INCLUYE: INSTALACIÓN QUE INCLUYE ACCESORIOS,  ANDAMIOS, ELEVACIONES, HERRAMIENTAS, LIMPIEZA MANO DE OBRA.","PZA",7]
["C.6","PLAZOLETA",null,0,0,null,{"$f":"SUM(G226:G237)","v":0}]
["DOPI-189","DEMOLICIÓN A MANO DE ADOQUIN CON UN ESPESOR HASTA 10CMS, INCLUYE: HERRAMIENTA, MANO DE OBRA, ACARREO INTERNO Y APILE PARA RETIRO POSTERIOR. VOLUMEN MEDIDO EN BANCO.","M2",111.49]
["DOPI-190","DEMOLICIÓN DE JARDINERA EN EXPLANADA DE FORMA IRREGULAR CON MUROS DE 10 CM DE ANCHO Y 70 CM DE ALTURA A MANO Y/O EQUIPO MECANICO LIGERO, INCLUYE: HERRAMIENTA, MANO DE OBRA, ACARREO INTERNO Y APILE PARA RETIRO POSTERIOR. VOLUMEN MEDIDO EN BANCO.","M3",2.0299999999999998]
["DOPI-191","MURO TIPO TEZON DE BLOCK 11 X 14 X 28 CM ASENTADO CON MORTERO CEMENTO-ARENA 1:3, ACABADO COMÚN, INCLUYE: MATERIALES, MANO DE OBRA, EQUIPO Y HERRAMIENTA.","M2",13.51]
["DOPI-192","DALA DE DESPLANTE DE  SECCIÓN 15X20 CM. CON CONCRETO F'C=150 KG./CM2  Y 4 VARILLAS DE 3/8\", ESTRIBOS DE ALAMBRON DE 1/4\" @20CM. INCLUYE: CIMBRADO,  DESCIMBRADO, MATERIALES , MANO DE OBRA, HERRAMIENTA Y EQUIPO.","M",10.14]
["DOPI-193","CASTILLOS  DE  SECCIÓN 12X20  CM.CON CONCRETO F'C=150 KG. CM2 Y ARMEX 15X20 CM. HASTA UNA ALTURA DE 3.50 MTS, INCLUYE: ANDAMIOS, CIMBRADO, VIBRADO, CIMBRADO,  MATERIALES,  MANO DE OBRA, HERRAMIENTA Y EQUIPO.","M",10.14]
["DOPI-194","APLANADO DE 2.50 CM DE ESPESOR EN MURO CON MORTERO CEMENTO-ARENA 1:3, ACABADO PULIDO O APALILLADO, INCLUYE: MATERIALES, ACARREOS, DESPERDICIOS, MANO DE OBRA, ANDAMIOS, PLOMEADO, NIVELADO, REGLEADO, RECORTES, MANO DE OBRA, EQUIPO Y HERRAMIENTA.","M2",6.76]
["DOPI-195","BOQUILLA DE 15 A 20 CM DE ANCHO, CON MORTERO CAL - ARENA PROPORCIÓN 1:3, ACABADO REPELLADO, EN APERTURA DE VANOS DE PUERTAS Y VENTANAS, INCLUYE: HERRAMIENTA, PLOMEADO, NIVELADO, DESPERDICIOS, MATERIALES, EQUIPO Y MANO DE OBRA.","M",10.14]
["DOPI-196","SUMINISTRO E INSTALACIÓN DE ADOQUÍN HIDRAULICO  DE 10 X 20 X 8 CM DE ESPESOR COLOR GRIS, DISEÑO Y COLORES SEGÚN SUPERVISIÓN, INCLUYE: NIVELACIÓN, CORTES, DESPERDICIOS, ACARREOS, MATERIAL, MANO DE OBRA Y HERRAMIENTA.","M2",145.62]
["DOPI-197","PINTURA ESMALTE CARA ABIERTA EN HERRERIA DE PUERTAS Y VENTANAS DE FACHADA, INCLUYE: RASPADO Y PREPARACION EL AREA, ANDAMIOS, MATERIALES, MANO DE OBRA , EQUIPO HERRAMIENTA Y LIMPIEZA.","M2",67.569999999999993]
["DOPI-198","SUMINISTRO , HABILITADO Y COLOCACION DE HERRERIA ESTRUCTURAL PARA ESCALERAS, PUERTAS, VENTANAS, CANCELES Y PASAMANOS, INCLUYE: FLETES, ACARREOS, CORTES, DESPERDICIOS, SOLDADURAS, PINTURA ANTICORROSIVA ( PRIMER ), MATERIAL Y MANO DE OBRA.","KG",3.51]
["DOPI-199","SUMINISTRO, INSTALACION Y PUESTA EN MARCHA DE BOMBA PERIFERICA AUTOCEBANTE DE 1HP MCA. IGOTO O SIMILAR, INCLUYE: MATERIALES, MANO DE OBRA, HERRAMIENTA Y TODO LO NECESARIO PARA SU CORRECTA EJECUCION.","PZA",1]
["DOPI-200","TRASPLANTE DE ARBOL EXISTENTE DE 7-10 M DE ALTURA PROMEDIO CON TRONCO PROMEDIO DE 8\"-10\", INCLUYE: EXCAVACIÓN MECÁNICA, CARGA A CAMION, TRASLADO, EXCAVACION, COLOCACION DE ARBOL, TIERRA VEGETAL, RIEGO DE AGUA, VITAMINAS, MANO DE OBRA Y HERRAMIENTA.","PZA",2]
[]
[null,"RESUMEN DE PARTIDAS"]
[null,{"$f":"B5","v":"Rehabilitación del Ingreso principal, caseta y sanitarios del bosque Pedagógico del Agua ubicado en Av. Santa Cecilia y Av. Las Palmas, incluye: conexión a andador y obras complementarias, colonia Real del Parque, municipio de Zapopan, Jalisco."}]
[]
[]
[{"$f":"A10","v":0},{"$f":"B10","v":0},null,null,null,null,{"$f":"G10","v":0}]
["A",{"$f":"VLOOKUP(A244,$A$16:$G$237,2,FALSE)","v":"INGRESO 1, LAS PALMAS"},null,null,null,null,{"$f":"VLOOKUP(A244,A16:G237,7,)","v":0}]
["A.1",{"$f":"VLOOKUP(A245,$A$16:$G$237,2,FALSE)","v":"DEMOLICIÓN"},null,null,null,null,{"$f":"VLOOKUP(A245,A17:G238,7,)","v":0}]
["A.2",{"$f":"VLOOKUP(A246,$A$16:$G$237,2,FALSE)","v":"ALBAÑILERÍA"},null,null,null,null,{"$f":"VLOOKUP(A246,A18:G238,7,)","v":0}]
["A.3","INSTALACIÓN ELÉCTRICA",null,null,null,null,{"$f":"VLOOKUP(A247,A19:G238,7,)","v":0}]
["A.4","INSTALACIÓN HIDRO - SANITARIA.",null,null,null,null,{"$f":"VLOOKUP(A248,A20:G238,7,)","v":0}]
["A.5","ACABADOS",null,null,null,null,{"$f":"VLOOKUP(A249,A21:G239,7,)","v":0}]
["A.6","HERRERÍA",null,null,null,null,{"$f":"VLOOKUP(A250,A22:G240,7,)","v":0}]
["A.7","LIMPIEZA",null,null,null,null,{"$f":"VLOOKUP(A251,A23:G241,7,)","v":0}]
["B",{"$f":"VLOOKUP(A252,$A$16:$G$237,2,FALSE)","v":"INGRESO 2, ACUEDUCTO"},null,null,null,null,{"$f":"VLOOKUP(A252,$A$16:$G$237,7,FALSE)","v":0}]
["B.1",{"$f":"VLOOKUP(A253,$A$16:$G$237,2,FALSE)","v":"DEMOLICIÓN"},null,null,null,null,{"$f":"VLOOKUP(A253,A25:G243,7,)","v":0}]
["B.2",{"$f":"VLOOKUP(A254,$A$16:$G$237,2,FALSE)","v":"ALBAÑILERÍA"},null,null,null,null,0]
["B.3","INSTALACIÓN HIDRO - SANITARIA.",null,null,null,null,0]
["B.4","ACABADOS",null,null,null,null,0]
["B.5","HERRERÍA",null,null,null,null,0]
["B.6","LIMPIEZA",null,null,null,null,0]
["C",{"$f":"VLOOKUP(A259,$A$16:$G$237,2,FALSE)","v":"INGRESO 3, SANTA CECILIA"},null,null,null,null,{"$f":"VLOOKUP(A259,$A$16:$G$237,7,FALSE)","v":0}]
["C.1",{"$f":"VLOOKUP(A260,$A$16:$G$237,2,FALSE)","v":"BIODIGESTOR"},null,null,null,null,{"$f":"VLOOKUP(A260,$A$16:$G$237,7,FALSE)","v":0}]
["C.2",{"$f":"VLOOKUP(A261,$A$16:$G$237,2,FALSE)","v":"CABALLERIZA"},null,null,null,null,{"$f":"VLOOKUP(A261,$A$16:$G$237,7,FALSE)","v":0}]
["C.3","BAÑOS PLANTA ALTA",null,null,null,null,0]
["C.4","PLANTA ALTA CASETA DE INGRESO",null,null,null,null,0]
["C.5","CASETA DE INGRESO PLANTA BAJA",null,null,null,null,0]
["C.6","PLAZOLETA",null,null,null,null,0]
[]
[]
[]
[]
["IMPORTE TOTAL CON LETRA",null,null,null,null,"SUBTOTAL M. N.",{"$f":"+G259+G252+G244","v":0}]
[null,null,null,null,null,"IVA M. N.",{"$f":"ROUND(G270*0.16,2)","v":0}]
[null,null,null,null,null,"TOTAL M. N.",{"$f":"G270+G271","v":0}]